{"text_format":"1","workbook":"xlsx","n_sheets":7,"sheets":["ПЕЧАТЬ","ПРАЙС","Сертиф","Лист2","shHelp","shLists","Tmp_####"],"not_rendered":{"charts":0,"images":6,"macros":1,"external_links":0,"defined_names":3,"comments":0,"pivot_tables":0},"unopened":[],"bounds":{"document_bytes":16777216,"sheet_cells":100000,"rows_first":2000,"rows_last":500,"rows_between":2000,"halvings":0,"cell_chars":16384,"cell_head_chars":4096},"cells_cut":0,"cells_raw":0,"read":"whole","date_system":"1900"}

{"sheet":"ПЕЧАТЬ","index":0,"n_rows":96,"n_cols":9,"rows_kept":96,"cut":false,"hidden":false,"merged":[[79,7,79,12],[72,3,73,6],[79,4,79,6],[75,3,76,6],[86,0,86,6],[71,0,78,2],[16,0,16,6],[71,4,71,6],[47,0,47,6],[58,2,58,5],[49,0,50,6],[67,0,67,6],[68,0,68,6],[69,0,69,6],[46,0,46,1],[65,0,65,6],[51,0,51,6],[52,0,52,6],[57,0,57,6],[59,0,59,3],[79,0,79,3],[95,3,95,4],[95,0,95,1],[91,0,91,6],[92,0,92,6],[93,0,93,3],[94,5,94,6],[94,0,94,3],[93,5,93,6],[87,3,87,6],[82,0,82,6],[81,0,81,6],[85,3,85,6],[8,0,8,1],[41,0,41,3],[14,0,14,6],[8,4,8,6],[10,0,10,6],[12,5,12,6],[36,0,36,1],[9,0,9,2],[9,3,9,4],[40,0,40,2],[39,0,39,6],[11,0,11,6],[17,0,17,6],[38,0,38,6],[18,0,18,6],[13,0,13,6],[42,0,42,6],[43,0,43,6],[61,1,61,6],[88,0,90,6],[83,3,83,6],[84,1,84,5],[60,0,60,6],[48,0,48,6],[64,0,64,6],[66,0,66,6],[53,0,53,3],[62,0,62,6],[44,0,44,6],[45,0,45,6],[63,0,63,6],[58,0,58,1]]}
["2023-05-15T16:15:41"]
[]
[]
[]
[]
[]
[]
[{"$f":"\"Договор \"&$D$10&\" \"&#REF!","v":{"$error":"#REF!"}}]
[null,null,null,null,"Приложение № 3, утверждено приказом ГБУЗРК \"РДКБ\" от ___________2023 №___"]
["Договор №"]
["на оказание платных медицинских услуг"]
["Дата:__________"]
[null,null,null,null,null,"время:____________"]
["Государственное бюджетное учреждение здравоохранения Республики Крым «Республиканская детская клиническая больница» (свидетельство о государственной регистрации юридического лица в Единый государственный реестр юридических лиц 91№000016825 от 30.12.2014 года ИФНС по г. Симферополю), именуемое в дальнейшем «Исполнитель», осуществляющее деятельность из числа указанных в части 1 статьи 12 Федерального закона «О лицензировании отдельных видов деятельности» регистрационный номер лицензии № Л041-1177-91/00355224 от  24 июля 2020 г., выданной Министерством здравоохранения Республики Крым (295005, Республика Крым, г. Симферополь, проспект Кирова 13, тел. 7-3652-544-684) (срок действия - бессрочно),  в лице Главного врача Олейника Анатолия Васильевича, действующего на основании Устава, с одной стороны, и гражданин (ка)"]
["(Законный представитель),  именуемый в дальнейшем Заказчик, и действующий в интересах несовершеннолетнего ребенка (пациента)              "]
[]
["(пациент),     , именуемого в дальнейшем \"Потребитель\" и (или) \"Пациент\" "]
["1. ПРЕДМЕТ ДОГОВОРА"]
["1.1. Настоящий договор определяет условия оказания платных медицинских услуг. «Заказчик» поручает, а «Исполнитель» обязуется оказать «Пациенту» (Потребителю) платную медицинскую услугу (или услуги) согласно сметы на оказание платной медицинской услуги"]
["№№\n п/п","Код медицинской услуги","кассовый код","Наименование медуслуги","количество услуг","Цена","Сумма"]
[1,{"$f":"IFERROR(VLOOKUP(D21,ПРАЙС,2,0),\" -------- \")","v":" -------- "},{"$f":"IFERROR(VLOOKUP(D21,ПРАЙС,4,0),\"\")","v":""},null,1,{"$f":"IFERROR(VLOOKUP(D21,ПРАЙС,3,0),\" -------- \")","v":" -------- "},{"$f":"IFERROR(F21*E21,\" -------- \")","v":" -------- "}]
[2," -------- ","",null,null," -------- "," -------- "]
[3," -------- ","",null,null," -------- "," -------- "]
[4," -------- ","",null,null," -------- "," -------- "]
[5," -------- ","",null,null," -------- "," -------- "]
[6," -------- ","",null,null," -------- "," -------- "]
[7," -------- ","",null,null," -------- "," -------- "]
[8," -------- ","",null,null," -------- "," -------- "]
[9,{"$f":"IFERROR(VLOOKUP(D29,ПРАЙС,2,0),\" -------- \")","v":" -------- "},{"$f":"IFERROR(VLOOKUP(D29,ПРАЙС,4,0),\"\")","v":""},null,null,{"$f":"IFERROR(VLOOKUP(D29,ПРАЙС,3,0),\" -------- \")","v":" -------- "},{"$f":"IFERROR(F29*E29,\" -------- \")","v":" -------- "}]
[10,{"$f":"IFERROR(VLOOKUP(D30,ПРАЙС,2,0),\" -------- \")","v":" -------- "},{"$f":"IFERROR(VLOOKUP(D30,ПРАЙС,4,0),\"\")","v":""},null,null,{"$f":"IFERROR(VLOOKUP(D30,ПРАЙС,3,0),\" -------- \")","v":" -------- "},{"$f":"IFERROR(F30*E30,\" -------- \")","v":" -------- "}]
[11,{"$f":"IFERROR(VLOOKUP(D31,ПРАЙС,2,0),\" -------- \")","v":" -------- "},{"$f":"IFERROR(VLOOKUP(D31,ПРАЙС,4,0),\"\")","v":""},null,null,{"$f":"IFERROR(VLOOKUP(D31,ПРАЙС,3,0),\" -------- \")","v":" -------- "},{"$f":"IFERROR(F31*E31,\" -------- \")","v":" -------- "}]
[12,{"$f":"IFERROR(VLOOKUP(D32,ПРАЙС,2,0),\" -------- \")","v":" -------- "},{"$f":"IFERROR(VLOOKUP(D32,ПРАЙС,4,0),\"\")","v":""},null,null,{"$f":"IFERROR(VLOOKUP(D32,ПРАЙС,3,0),\" -------- \")","v":" -------- "},{"$f":"IFERROR(F32*E32,\" -------- \")","v":" -------- "}]
[13,{"$f":"IFERROR(VLOOKUP(D33,ПРАЙС,2,0),\" -------- \")","v":" -------- "},{"$f":"IFERROR(VLOOKUP(D33,ПРАЙС,4,0),\"\")","v":""},null,null,{"$f":"IFERROR(VLOOKUP(D33,ПРАЙС,3,0),\" -------- \")","v":" -------- "},{"$f":"IFERROR(F33*E33,\" -------- \")","v":" -------- "}]
[14]
[15]
[16]
["Итого",null,null,null,null,{"$f":"SUM(F21:F33)","v":0},{"$f":"SUM(G21:G36)","v":0}]
[]
["и утвержденного Прейскуранта. Заказчик, Потребитель  (Пациент) информированы о том, что платная медицинская услуга, оказываемая согласно данному Договору, может быть получена Пациентом бесплатно, в соответствии с Постановление Правительства Российской Федерации от 29.12.2022 № 2497 \"О Программе государственных гарантий бесплатного оказания гражданам медицинской помощи на 2023 год и на плановый период 2024 и 2025 годов\", в сроки и в порядке установленным Постановлением Совета министров Республики Крым от 28 декабря 2022 года № 1271 «Об утверждении Территориальной программы государственных гарантий бесплатного оказания гражданам медицинской помощи в Республике Крым на 2023 год и на плановый период 2024 и 2025 годов».  Сроки оказания медуслуг определяют исходя из конкретной клинической ситуации пациента.        Сроки согласуются с пациентом в медицинской документации, которая представляет собой неотъемлемую часть договора.  Предельные сроки ожидания  медицинской помощи:\n     Медицинская помощь оказывается гражданам в трех формах – плановая, неотложная и экстренная.\n     Экстренная форма предусматривает оказание медицинской помощи при внезапных острых заболеваниях, состояниях, обострении хронических заболеваний, представляющих угрозу жизни пациента. При этом медицинская помощь в экстренной форме оказывается медицинской организацией и медицинским работником гражданину безотлагательно и бесплатно. Отказ в ее оказании не допускается.\n      Неотложная форма предусматривает оказание медицинской помощи при внезапных острых заболеваниях, состояниях, обострении хронических заболеваний без явных признаков угрозы жизни пациента.\n      Плановая форма предусматривает оказание медицинской помощи при проведении профилактических мероприятий, при заболеваниях и состояниях, не сопровождающихся угрозой жизни пациента, не требующих экстренной и неотложной медицинской помощи, и отсрочка оказания которой на определенное время не повлечет за собой ухудшение состояния пациента, угрозу его жизни и здоровью.\n     В зависимости от этих форм Правительством Российской Федерации устанавливаются предельные сроки ожидания медицинской помощи.\n     Так, сроки ожидания оказания первичной медико-санитарной помощи в неотложной форме не должны превышать 2 часов с момента обращения пациента в медицинскую организацию.\n      Сроки ожидания оказания медицинской помощи в плановой форме для:\n    -  приема врачами-терапевтами участковыми, врачами общей практики (семейными врачами), врачами-педиатрами участковыми не должны превышать 24 часов с момента обращения пациента в медицинскую организацию;\n     -  проведения консультаций врачей-специалистов не должны превышать 14 календарных дней со дня обращения пациента в медицинскую организацию;\n"]
["    - проведения диагностических инструментальных (рентгенографические исследования, включая маммографию, функциональная диагностика, ультразвуковые исследования) и лабораторных исследований при оказании первичной медико-санитарной помощи не должны превышать 14 календарных дней со дня назначения;\n    - проведения компьютерной томографии (включая однофотонную эмиссионную компьютерную томографию), магнитно-резонансной томографии и ангиографии при оказании первичной медико-санитарной помощи не должны превышать 30 календарных дней, а для пациентов с онкологическими заболеваниями – 14 календарных дней со дня назначения;\n    -  специализированной (за исключением высокотехнологичной) медицинской помощи не должны превышать 30 календарных дней со дня выдачи лечащим врачом направления на госпитализацию, а для пациентов с онкологическими заболеваниями - 14 календарных дней с момента установления диагноза заболевания. \n      Заключение договора означает полное согласие Пациента на оказание медицинских услуг согласно условий данного Договора."]
["1.2. Срок оказания медицинской услуги: ",null,null,{"$f":"$A$1","v":"2023-05-15T16:15:41"}]
["1.3. Режим работы Исполнителя: 08:00 – 15:30 по м.в."]
["1.4. В случае если при предоставлении платных медицинских услуг потребуется предоставление дополнительных медицинских услуг по экстренным показаниям для устранения угрозы жизни Потребителя при внезапных острых заболеваниях, состояниях, обострениях хронических заболеваний, такие медицинские услуги оказываются без взимания платы в соответствии с Федеральным законом от 21 ноября 2011 года № 323-ФЗ «Об основах охраны здоровья граждан в Российской Федерации». Расходы, связанные с оказанием Потребителю медицинской помощи в экстренной форме, возмещаются Исполнителю в порядке и размерах, которые установлены органом исполнительной власти субъекта Российской Федерации в рамках территориальных программ в соответствии с пунктом 10 части 2 статьи 81 Федерального закона от 21 ноября 2011 года № 323-ФЗ «Об основах охраны здоровья граждан в Российской Федерации»."]
["1.5.Заказчик, Потребитель подтверждает, что согласен на осуществление отдельных консультаций или медицинских вмешательств, в том числе в объеме, превышающем объем выполняемого стандарта медицинской помощи.  При возникновении необходимости выполнения дополнительных услуг, не предусмотренных договором, они выполняются с согласия «Заказчика» с оплатой по утвержденному прейскуранту, посредством заключения дополнительного соглашения к данному договору или заключением нового договора."]
["2. СТОИМОСТЬ И ПОРЯДОК ОПЛАТЫ."]
["2.1. Цена услуги, при отсутствии необходимости выполнения других работ, не предусмотренных в договоре, устанавливается на уровне"]
[{"$f":"G37","v":0}]
["\n2.2. «Заказчик» обязан в течение 3-х банковских дней с момента заключения договора произвести оплату медицинской услуги.\n2.3. Оплата производится до оказания медицинской услуги в кассу «Исполнителя» или перечислением на расчетный счет, на основании действующего у Исполнителя прейскуранта в соответствии с фактическим объемом оказанных услуг  и сметы оказанной услуги, которая является неотъемлемой частью Договора. Оплата может быть произведена самим «Заказчиком», его страховой компанией либо третьим заинтересованным физическим или юридическим лицом на основании счета, выписанного «Исполнителем». Оплата производится в полном объеме. Потребитель ознакомлен с прейскурантом до подписания настоящего договора. \n2.4. В случае возникновения необходимости приобретения «Заказчиком» для Потребителя (Пациента) дополнительных медицинских расходных материалов для оказания медицинской услуги, указанной в п. 1.1. настоящего договора, и их отсутствия у «Исполнителя», «Заказчик» должен приобрести следующие расходные материалы _______________________________________________________________________________"]
["3. ПРАВА И ОБЯЗАННОСТИ СТОРОН."]
["3.1. «Исполнитель» обязан:\n- оказать  \"Потребителю\" («Пациенту») квалифицированную, качественную медицинскую помощь в установленный договором срок; организовывать и осуществлять медицинскую деятельность в соответствии с законодательством Российской Федерации, в том числе положениями об организации оказания медицинской помощи и порядками оказания медицинской помощи, организации медицинской реабилитации и санаторно-курортного лечения, проведения медицинских экспертиз, диспансеризации, диспансерного наблюдения, медицинских осмотров и медицинских освидетельствований, на основе клинических рекомендаций, а также с учетом стандартов медицинской помощи, в установленный договором срок; По требованию Заказчика и (или) Потребителя предоставить ему в доступной форме информацию о платных медицинских услугах, содержащую следующие сведения:\n— порядки оказания медицинской помощи и стандарты медицинской помощи, применяемые при предоставлении платных медицинских услуг;\n— информацию о конкретном медицинском работнике, предоставляющем соответствующую платную медицинскую услугу (его профессиональном образовании и квалификации);\n— информацию о методах оказания медицинской помощи, связанных с ними рисках, возможных видах медицинского вмешательства, их последствиях и ожидаемых результатах оказания медицинской помощи;\n— другие сведения, относящиеся к предмету настоящего договора..\n- предоставить Заказчику и (или) Потребителю («Пациенту») бесплатную, доступную, полную, достоверную информацию о заболевании, предоставляемой услуге и возможных осложнениях. В случае если при предоставлении платных медицинских услуг требуется предоставление на возмездной основе дополнительных медицинских услуг, не предусмотренных договором, Исполнитель обязан предупредить об этом Потребителя.\nБез согласия Потребителя Исполнитель не вправе предоставлять дополнительные медицинские услуги на возмездной основе. \n- Уведомить Потребителя о том, что граждане, находящиеся на лечении, в соответствии с Федеральным законом от 21.11.2011 № 323-ФЗ «Об основах охраны здоровья граждан в Российской Федерации» обязаны соблюдать режим лечения, в том числе определенный на период их временной нетрудоспособности, и правила поведения пациента в медицинских организациях.\n\n3.2. «Исполнитель» имеет право:\n- в случае возникновения неотложных состояний самостоятельно определять объем исследований, манипуляций, оперативных вмешательств, необходимых для установления диагноза, обследования и оказания медицинской помощи, в т.ч. и не предусмотренной договором.\n3.3. Заказчик и (или) \"Потребитель\" («Пациент») обязан:\n- своевременно оплатить стоимость услуг;\n- сообщить врачу до начала медицинского вмешательства полные сведения о состоянии своего здоровья, перенесенных и наследственных заболеваниях, противопоказаниях, профессиональных вредностях, вредных привычках (курение, употребление алкоголя, наркотиков, токсических веществ), переносимости лекарственных средств, аллергических проявлениях, эпидемиологических данных;\n-соблюдать назначения лечащего врача и медицинского персонала;\n-соблюдать установленные предписания и правила при пребывании в лечебном учреждении;\n-не применять не назначенные препараты и иные методы диагностики и лечения;\n-консультироваться со специалистами других медицинских учреждений только по согласованию с исполнителями медицинских услуг и сообщать об их результатах.\n3.4. \"Потребитель\" («Пациент»), его законный представитель, имеет право:\n-на предоставление информации о медицинской услуге;\n-знакомиться со своей медицинской документацией, документами, подтверждающими специальную правоспособность учреждения и его врачей;\n-получить заключение с указанием результатов проведенных исследований, лечебных мероприятий и необходимых рекомендаций;\n-на устранение вреда, в случае неполного оказания медицинской услуги, в случае если данный вред был причинен по вине Исполнителя, в судебном порядке;\n-отказаться от получения медицинской услуги до ее оказания, уведомив Исполнителя об этом не менее за 3 (три) дня и получить обратно оплаченную сумму с возмещением «Исполнителю» затрат, связанных с подготовкой оказания услуги.\n"]
[]
["4. ИНФОРМАЦИЯ О ПРЕДОСТАВЛЯЕМОЙ МЕДИЦИНСКОЙ УСЛУГЕ."]
["4.1. Информацию об оказываемой медицинской услуге \"Заказчик\", \"Потребитель\"  («Пациент») получает в\nустной форме от специалиста-"]
[]
["Краснова Виктория Валерьевна",null,null,"Каретникова Марина Сергеевна ",null,null,null,null,"Муединова Эльвира Разимовна"]
["Дмитрюк Светлана Викторовна",null,null,"Каретникова Марина Сергеевна "]
["Янина Татьяна Юрьевна"]
["\n4 2. Перед оказанием медицинской услуги врач устанавливает отсутствие \nпротивопоказаний. При их наличии медицинская услуга не оказывается."]
["4.3. Медицинскую услугу выполняет ",null,{"$f":"IFERROR(VLOOKUP(A54,Сертификаты,3,FALSE),\" -------- \")","v":" -------- "}]
["квалификационной категории, имеющий сертификат специалиста"]
[{"$f":"IFERROR(VLOOKUP(A54,Сертификаты,4,FALSE),\" -------- \")","v":" -------- "}]
["4.4.","Порядок и условия выдачи потребителю (законному представителю потребителя) после исполнения договора  исполнителем медицинских документов: результаты медицинской услуги (копии медицинских документов, выписки из медицинских документов), отражающие состояние его здоровья после получения платных медицинских услуг, включая сведения о результатах обследования, диагнозе, методах лечения, об используемых при предоставлении платных медицинских услуг лекарственных препаратах и медицинских изделиях, без взимания дополнительной платы, осуществляется по запросу \"Заказчика\" и (или) \"Потребителя\" (\"Пациента\")не ранее оказания медицинской услуги и не позднее 10 (десяти) рабочих дней с момента её оказания, в зависимости от вида и сложности оказанной услуги. В случае нахождения пациента (потребителя) на стационарном лечении - в течении 1 (одного) рабочего дня."]
["4.5. С учетом самой технологии выполнения медицинской услуги \"Заказчик\", \"Потребитель\" («Пациент») \nдолжен осознавать вероятность (но не обязательность) вредных (побочных) эффектов медицинского вмешательства и осложнений, что может причинить вред здоровью, о чем \"Заказчик\", \"Потребитель\", «Пациент» в устной форме информируется специалистом, оказывающим медицинские услуги до момента подписания договора.\n4.6. В связи с тем, что вышеперечисленные побочные эффекты и осложнения возникают вследствие биологических особенностей организма и используемая технология оказания медицинской помощи не может полностью исключить их вероятность, «Исполнитель» не несет ответственность за наступление осложнений, если медицинская услуга оказана с соблюдением всех необходимых требований. В случае если осложнения потребовали оказания срочной медицинской помощи, согласно Тарифному соглашению по Республике Крым и  Федеральному Закону «О обязательном медицинском страховании», «Исполнитель» устраняет подобные вредные последствия без дополнительной оплаты.\n4.7. В связи с оказанием медицинской услуги в предусмотренных нормативными актами случаях, при госпитализации, \"Потребителю\" («Пациенту»), законному представителю, по его требованию выдается листок нетрудоспособности.\n4.8. \"Потребитель\" («Пациент»), его законный представитель (\"Заказчик\") подтверждает, что ознакомлен с «Правилами оказания медицинских услуг» в «ГБУЗРК «РДКБ»», с дополнительной информацией, касающейся особенностей данной медицинской услуги и условий ее предоставления, до начала оказания медицинской услуги. \"Заказчик\" и \"Потребитель\" (\"Пациент\") уведомлены о том, что граждане, находящиеся на лечении, в соотвествии с Федеральным законом \"Об основах охраны здоровья граждан в Российской Федерации\" обязаны соблюдать режим лечения, в том числе определенный на период их временной нетрудоспособности, и правила поведения пациента в медицинских организациях, а именно в ГБУЗРК \"РДКБ\".\n"]
["5. ОТВЕТСТВЕННОСТЬ СТОРОН."]
["5.1.В случае неполного оказания медицинской услуги \"Заказчик\" и (или) \"Потребитель\" («Пациент») вправе потребовать безвозмездного устранения недостатков оказанной услуги, если услуга была оказана в ненадлежащем виде. Факт ненадлежащего оказания медицинской услуги должен быть зафиксирован. Исполнитель, в свою очередь, обязуется исполнить услугу в полном ее объеме и приложить все зависящие от него усилия для ее исполнения.\n5.2. «Исполнитель» освобождается от ответственности за неисполнение или ненадлежащее исполнение своих обязанностей по договору, если докажет, что это произошло вследствие непреодолимой силы, нарушения  \"Заказчиком\", \"Потребителем\" («Пациентом») своих обязанностей или по Другим основаниям, предусмотренным законодательством.\n5.3. \"Заказчик\" и (или) \"Потребитель\" («Пациент») обязан возместить медицинскому учреждению фактически произведенные расходы по оказанию услуги, если «Исполнитель» не смог или был вынужден прекратить ее оказание по вине \"Заказчика\" и (или) \"Потребителя\"  («Пациента»). "]
["6. ПРОЧИЕ УСЛОВИЯ."]
["6.1. Договор составляется в трех экземплярах (по одному для Заказчика, Потребителя и Исполнителя). В случае если договор заключается между Потребителем и Исполнителем, он составляется в двух экземплярах. Договор вступает в силу с момента его подписания сторонами и действует до момента исполнения обязательств.\n6.2. Споры и разногласия решаются путей переговоров и в судебном порядке. Договор может быть изменен по обоюдному согласию сторон посредством письменного заключения дополнительного соглашения.\n6.3. Договор может быть расторгнут по соглашению сторон.\n6.4. \"Заказчик\" вправе расторгнуть договор об оказании услуги и потребовать полного возмещения убытков, если выявленные недостатки оказанной услуги не устранены «Исполнителем». «Заказчик» вправе расторгнуть договор также в тех случаях, если им обнаружены существенные недостатки оказанной услуги или иные существенные отклонения от условий договора.\n6.5. Договор может быть расторгнут и по другим основаниям, предусмотренным законодательством Российской Федерации.\n6.6. Сторона, считая, что ее права по настоящему договору нарушены, может направить другой стороне претензию, которая рассматривается в течение 10 рабочих дней. В случае неполучения ответа или неудовлетворения ответом, пославшая претензию сторона может обратиться в суд. За неисполнение или ненадлежащее исполнение обязательств по договору стороны несут ответственность, предусмотренную законодательством Российской Федерации. Вред, причиненный жизни или здоровью пациента в результате оказания платных медицинских услуг ненадлежащего качества, подлежит возмещению Исполнителем в соответствии с законодательством Российской Федерации. \n"]
["6.7. Настоящий Договор заключен посредством использования сети «Интернет» через официальный сайт Исполнителя на основании ознакомления потребителя и (или) заказчика с предложенным исполнителем описанием медицинской услуги (дистанционный способ заключения договора).\n6.8. При заключении договора дистанционным способом потребитель самостоятельно знакомится на официальном сайте исполнителя в сети «Интернет» _____ со следующей информацией:\n– наименование (фирменное наименование) Исполнителя;\n– основной государственный регистрационный номер исполнителя;\n– идентификационный номер налогоплательщика (исполнителя);\n– информация об оказываемой услуге (выполняемой работе), предусмотренная статьей 10 Закона Российской Федерации от 07.02.1992 № 2300-1 «О защите прав потребителей»;\n– способы оплаты услуги (работы);\n– сведения о лицензии на осуществление медицинской деятельности (номер лицензии, сроки ее действия, а также информация об органе, выдавшем указанную лицензию);\n– адреса, в том числе адреса электронной почты, по которым принимаются обращения (жалобы) и требования потребителей и (или) заказчиков.\n6.9. Указанная в п. 6.3. информация размещена на официальном сайте исполнителя в сети «Интернет» child-hosp.ru. Подписанием настоящего договора электронной подписью потребителя и (или) заказчика, потребитель и (или) заказчик подтверждает факт ознакомления с данной информацией.\n6.10. Договор с потребителем и (или) заказчиком считается заключенным со дня оформления потребителем и (или) заказчиком соответствующего согласия (акцепта), в том числе путем совершения действий по выполнению условий договора, включая внесение частично или полностью оплаты по договору с учетом положений статей 16.1. и 37 Закона Российской Федерации от 07.02.1992 № 2300-1 «О защите прав потребителей».\nСо дня получения согласия (акцепта) и осуществления потребителем и (или) заказчиком частичной или полной оплаты по нему все условия договора остаются неизменными и не должны корректироваться исполнителем без согласия потребителя и (или) заказчика.\n"]
["6.11. При заключении договора исполнитель представляет потребителю и (или) заказчику подтверждение заключения такого договора. Указанное подтверждение должно содержать номер договора или иной способ идентификации договора, который позволяет потребителю и (или) заказчику получить информацию о заключенном договоре и его условиях.\n6.12. По требованию потребителя и (или) заказчика в целях заключения и (или) исполнения договора, заключенного дистанционным способом, может осуществляться в том числе с помощью ФГИС «Единая система идентификации и аутентификации в инфраструктуре, обеспечивающей информационно-технологическое взаимодействие информационных систем, используемых для предоставления государственных и муниципальных услуг в электронной форме» («Госуслуги»).\n6.13. Согласие (акцепт) должно быть подписано электронной подписью потребителя и (или) заказчика (простой, усиленной неквалифицированной или усиленной квалифицированной) и усиленной квалифицированной электронной подписью лица исполнителя.\n6.14. Потребитель и (или) заказчик обязаны оплатить оказанную исполнителем медицинскую услугу в порядке и сроки, которые установлены договором, заключенным с исполнителем в дистанционной форме, с учетом положений статей 16.1 и 37 Закона Российской Федерации от 07.02.1992 № 2300-1 «О защите прав потребителей».\n6.15. При заключении договора дистанционным способом отказ потребителя и (или) заказчика от исполнения договора может быть совершен способом, используемым при его заключении.\n6.16. Потребитель и (или) заказчик могут направить исполнителю в любой форме и любым, включая дистанционный, способом требования, в том числе при обнаружении недостатков выполненной работы (оказанной платной медицинской услуги), а исполнитель обязан принять эти требования, в том числе дистанционным способом.\n6.17. Настоящий Договор вступает в силу с момента его заключения и действует до полного исполнения обязательств Сторонами.\n6.18. В случае отказа Потребителя после заключения договора от получения медицинских услуг договор расторгается. Исполнитель информирует Потребителя о расторжении договора по инициативе Потребителя, при этом Потребитель оплачивает фактически понесенные Исполнителем расходы, связанные с исполнением обязательств по договору.\n\n"]
["6.19. Оплату фактически оказанных Исполнителем Потребителю медицинских услуг, в случае досрочного расторжения настоящего Договора по основаниям, указанным в п. 6.13 Договора, Потребитель обязан произвести в течение 3 рабочих дней со дня расторжения Договора.\n6.20. Во всем, что не предусмотрено настоящим Договором, Стороны руководствуются действующим законодательством РФ.\n6.21. Исполнитель обеспечивает хранение настоящего договора в порядке, определенном законодательством Российской Федерации об архивном деле в Российской Федерации.\n"]
["Исполнитель:",null,null,"Пациент:"]
["295034, Республика Крым, г. Симферополь,  ул. Титова 71, Министерство финанов Республики Крым (ГБУЗРК \"РДКБ\", л/с 20756Щ92660), Единый казначейский счет 40102810645370000035\nОГРН 1149102171096\nИНН 9102064095 / КПП 910201001\nОКПО 00807263, \nКазначейский счет, открытый в УФК по Республике Крым 03224643350000007500 \nБИК 013510002,  Банк получателя: ОТДЕЛЕНИЕ РЕСПУБЛИКА КРЫМ БАНКА РОССИИ // УФК по Республике Крым г.Симферополь, КБК 00000000000000000130\nEmail: rdkb@mail.ru",null,null,"ФИО: "]
[null,null,null,{"$f":"$A$15","v":"(Законный представитель),  именуемый в дальнейшем Заказчик, и действующий в интересах несовершеннолетнего ребенка (пациента)              "}]
[]
[null,null,null,"Адрес проживания:"," "]
[null,null,null,null,null,null,null," "]
[]
[]
[]
["_______________________ Главный врач Олейник А.В."]
[null,null,null,null,null,null,null,{"$error":"#REF!"}]
[{"$f":"\"Приложение № 1 к Договору № \"&D10&\" об оказании платных медицинских услуг физическим лицам от \"&TEXT($A$1,\"дд ММММ ГГГГ\")&\" г.\"","v":"Приложение № 1 к Договору №  об оказании платных медицинских услуг физическим лицам от 15 Май 2023 г."}]
["Согласие на обработку персональных данных"]
[null,{"$f":"\"Я, нижеподписавшийся \"&\",\"","v":"Я, нижеподписавшийся ,"},null,{"$f":"$A$15","v":"(Законный представитель),  именуемый в дальнейшем Заказчик, и действующий в интересах несовершеннолетнего ребенка (пациента)              "}]
[null,"(ФИО заявителя, полностью)"]
[null,"проживающий по адресу:",null,{"$f":"$D$76","v":0}]
[{"$f":"\"паспорт серии \"&A2&\" ,номер \"&A3&\" ,выдан \"&A4","v":"паспорт серии  ,номер  ,выдан "}]
[null,null,null,"(дата выдачи и название выдавшего органа)"]
["(далее по тексту «Пациент»), в соответствии с требованиями статьи 9 Федерального закона от 27.07.2006г. «О персональных данных» №152-ФЗ, статьи 13 Федерального закона РФ от 21.11.2011г. «Об основах охраны здоровья граждан в РФ» №323-ФЗ, подтверждаю свое согласие на обработку ГБУЗРК «Республиканская детская клиническая больница», юридический адрес: Республика Крым, 295034, город Симферополь, ул. Титова, д. № 71, стр. 1, (далее — Оператор), моих персональных данных, включающих фамилию, имя, отчество, пол, дату рождения, адрес места жительства, реквизиты паспорта (документа удостоверения личности), реквизиты полиса ОМС/ДМС, страховой номер индивидуального лицевого счета в Пенсионном фонде России (СНИЛС), информацию о факте обращения за медицинской помощью, данные о состоянии моего здоровья, диагнозах, заболеваниях, случаях обращения за медицинской помощью в медико-профилактических целях, в целях установления медицинского диагноза и оказания медицинских услуг, и иная информация, полученная при моем обследовании и лечении (далее –«персональные данные») при условии, что обработка данных осуществляется лицом, профессионально занимающимся медицинской деятельностью, обязанным сохранять врачебную тайну. \n      В процессе оказания Оператором мне медицинской помощи я, в интересах обследования и лечения, предоставляю право медицинским работникам Оператора передавать мои персональные данные, должностным лицам Оператора, осуществляющим обработку персональных данных в силу своих должностных обязанностей, медицинским работникам медицинских организаций, с которыми Оператором заключен договор на оказание платных медицинских услуг, в рамках которого мне оказывается медицинская помощь.\n      В процессе оказания Оператором мне медицинской помощи в рамках договоров на оказание платных медицинских услуг (далее –договор), заключенных Оператором с юридическими и физическими лицами, сведения о которых указываются в приложении к настоящему согласию, (далее – Заказчик), я, в интересах обследования и лечения, предоставляю право работникам Оператора в течение срока оказания мне медицинских услуг (срок прикрепления) по договору передавать мои персональные данные Заказчику, в том числе, включающие в себя информацию о состоянии моего здоровья, диагнозе, заболеваниях, с целью учета и отчётности по договору, а также с целью осуществления Заказчиком контроля качества объемов и сроков оказания медицинской помощи по договору, с целью сообщения информации о наличии у меня заболевания, исключающего медицинское обслуживание по программам добровольного медицинского страхования (для договора, заключённого со страховой компанией), с целью предоставления Заказчику результатов проведения медицинского осмотра(профилактического, периодического, предварительного), в том числе предоставлять уполномоченным сотрудникам Заказчика на обозрение медицинскую документацию (медицинскую карту) (ее копии) в полном объеме. \n      Предоставляю Оператору право осуществлять любое действие (операция) или совокупность действий (операций), совершаемых с использованием средств автоматизации или без использования таких средств с моими персональными данными, включая сбор, запись, систематизацию, накопление, хранение, уточнение (обновление, изменение), извлечение, использование, передачу (распространение, предоставление, доступ), обезличивание, блокирование, удаление, уничтожение персональных данных. Оператор вправе обрабатывать мои персональные данные посредством внесения их в электронную базу данных, включения в списки (реестры) и отчетные формы, предусмотренные документами, регламентирующими предоставление отчетных данных (документов) по договорам, а также путем передачи персональных данных (в том числе информацию, содержащую сведения о врачебной тайне), по телефону на номер, указанный Заказчиком, с целью согласования оказания мне медицинских услуг в случаях, предусмотренных договором (в случае если медицинские услуги оказываются в рамках такого договора).\n      Срок хранения моих персональных данных соответствует сроку хранения медицинских документов (в т.ч. медицинской карты) и составляет не менее 25 (двадцать пять) лет. Передача моих персональных данных иным лицам или иное их разглашение может осуществляться только с моего письменного согласия, если иное не предусмотрено законодательством Российской Федерации. Настоящее согласие дано мной с момента подписания и действует бессрочно. Я оставляю за собой право отозвать настоящее согласие посредством составления соответствующего письменного документа, который может быть направлен мной в адрес Оператора по почте заказным письмом с уведомлением о вручении либо вручен лично под расписку представителю Оператора. В случае получения моего письменного заявления об отзыве настоящего согласия на обработку персональных данных Оператор обязан:\n • прекратить их обработку по истечению периода времени, необходимого для завершения взаиморасчетов по оплате оказанных мне до этого медицинских услуг; \n• по истечении указанного выше срока хранения моих персональных данных (двадцать пять лет) уничтожить (стереть) все мои персональные данные, в том числе из баз данных автоматизированной информационной системы Оператора, включая все копии на машинных носителях информации, без уведомления меня об этом.\n Настоящим подтверждаю свое согласие на обработку Оператором моего контактного телефона, адреса электронной почты и почтового адреса, с целью информирования меня о предстоящем посещении врача, сроках оказания услуг, предоставления иных, связанных с исполнением договора на оказание медицинских услуг, сведений, в том числе результатов медицинского исследования, анализов, иную медицинскую документацию, путем предоставления соответствующей информации с помощью электронной почты, смс-информирования, почтовой рассылки (я уведомлен, что информация будет направлена по незащищенным каналам связи, в связи с чем, Оператор не может нести ответственность за несанкционированное попадание сведений к третьим лицам).\n\n"]
[]
[]
[{"$f":"\"Контактные телефоны: дом. \"&A5&\" , моб.  \"&A6","v":"Контактные телефоны: дом.  , моб.  "}]
[{"$f":"\"Адрес электронной почты: \"&A7","v":"Адрес электронной почты: "}]
[{"$f":"$A$15","v":"(Законный представитель),  именуемый в дальнейшем Заказчик, и действующий в интересах несовершеннолетнего ребенка (пациента)              "}]
["(ФИО заявителя)",null,null,null,null,"(подпись)"]
[{"$f":"\"Дата \"&TEXT($A$1,\"дд.МММ.ГГГГ\")&\" г.\"","v":"Дата 15.май.2023 г."}]

{"sheet":"ПРАЙС","index":1,"n_rows":460,"n_cols":5,"rows_kept":460,"cut":false,"hidden":false,"merged":[]}
[null,"20.04 2019"]
["Общий анализ крови на геманализаторе","B03.016.002",337,1,{"$f":"VLOOKUP(A2,A2:D439,3,0)","v":337}]
["Тромбоциты","А08.05.03",477,1,477]
["Адгезия тромбоцитов","А12.05.054",779,1,779]
["Ретикулоциты","А 08.05.008",326,1,326]
["Длительность кровотечения","A12.05.015",149,1,149]
["Свертываемость","А12.05.015",176,1,176]
["Волчаночные клетки","А12.06.03",524,1,524]
["Мононуклеоз","А12.06.04",172,1,172]
["Реакция лейкоцитолиза",null,190,1,190]
["Осм. Резистентность","А12.05.002",1042,1,1042]
["СМЖ","А09.23.006",409,1,409]
["ОАК +СОЭ+формула","B03.016.003",518,1,518]
["СОЭ","А12.05.001",130,1,130]
["Исследование крови на малярию",null,553,1,553]
["Общий анализ мочи ","А09.28.050,А09.28.020,А09.28.022,А09.28.024",323,1,{"$f":"VLOOKUP(A16,A16:D452,3,0)","v":323}]
["Ацетон","А09.28.015 - А09.28.015.001",98,1,{"$f":"VLOOKUP(A17,A17:D454,3,0)","v":98}]
["Пр. Зимницкого",null,242,1,242]
["Пр. Нечипоренко",null,420,1,420]
["СЭБ","А09.20.005",220,1,220]
["Кал на я/гл","А09.19.002",620,1,620]
["Энтеробиоз","А09.19.002",195,1,195]
["Копроцитограмма","А09,19.004",183,1,183]
["Простейшие ","А09.10.009",160,1,160]
["Кал на скрытую кровь","А09.18.9.001",126,1,126]
["Формула ","А08.05.006",294,1,294]
["Мазок на ГН","А 09.20.001",229,1,229]
["Мазок на А/К",null,580,1,580]
["Определение уробилина и билирубина в моче","A09.28.031",98,1,98]
["Определение гемоглобина в моче","А09.28.020",104,1,104]
["Определение гемосидерина в моче","А09.28.024.",162,1,162]
["Определение концентрации глюкозы в сыворотке (плазме) крови","А09.05.23",132,4,132]
["Определение концентрации глюкозы в капиллярной крови с депротеинизацией","A09.05.023.003",246,4,246]
["Определение концентрации общего белка  в сыворотке (плазме) крови","А09.05.010",131,4,131]
["Определение концентрации альбумина в сыворотке (плазме) крови","А09.05.011",132,4,132]
["Определение концентрации мочевины в сыворотке (плазме) крови","А09.05.17",159,4,159]
["Определение концентрации креатинина в сыворотке (плазме) крови","А09.05.19",132,4,132]
["Определение концентрации общего холестерина в сыворотке (плазме) крови","А09.05.26",134,4,134]
["Определение концентрации билирубина и его фракций  в сыворотке (плазме) крови","А09.05.21",226,4,226]
["Определение концентрации тимоловой пробы в сыворотке (плазме) крови","А09.05.104",164,4,164]
["Определение активности АлАТ (АЛТ, аланинаминотрансферазы) в сыворотке (плазме) крови","А09.05.42",182,4,182]
["Определение активности АсАТ (АСТ,аспартатаминотрансферазы) в сыворотке (плазме) крови","А09.05.41",182,4,182]
["Определение активности щелочной фосфатазы в сыворотке (плазме) крови","А09.05.46",182,4,182]
["Определение активности α-амилазы (альфа-амилазы) в сыворотке (плазме) крови","А09.05.45",199,4,199]
["Определение активности ГГТ (гамма-глутамилтрансферазы,гамма-глутамилтранспептидазы) в сыворотке (плазме) крови","А09.05.044.001",209,4,209]
["Определение активности ЛДГ (лактатдегидрогеназы) в сыворотке (плазме) крови","А09.05.039",210,4,210]
["Определение триглицеридов в сыворотке крови","A09.05.025",186,4,186]
["Определение активности креатинкиназы в сыворотке крови","A09.05.043",195,4,195]
["Определение концентрации β-липопротеидов (бета-липопротеидов) в сыворотке  крови","А09.05.027",287,4,{"$f":"VLOOKUP(A49,A49:D486,3,0)","v":287}]
["Определение концентрации магния в сыворотке (плазме) крови","А09.05.127",159,4,159]
["Определение концентрации калия в сыворотке (плазме) крови","А09.05.031",138,4,138]
["Определение концентрации натрия в сыворотке крови","А09.050.30",71,4,71]
["Определение концентрации хлоридов в сыворотке (плазме) крови","А09.05.034",138,4,138]
["Определение концентрации кальция в сыворотке (плазме) крови","А09.05.032",108,4,108]
["Определение концентрации неорганического фосфора в сыворотке крови","А09.05.033",157,4,157]
["Определение концентрации железа и ОЖСС (общей железосвязывающей способности сыворотки) в сыворотке (плазме) крови","А09.05.007",408,4,408]
["Латексный тест для определения С-реактивного белка (СРБ) в сыворотке крови","A09.05.009.003",321,4,321]
["Определение концентрации С-реактивного белка (СРБ)  в сыворотке крови","А09.05.009",175,4,175]
["Определение концентрации ревматоидного фактора в сыворотке крови","A12.06.019",486,4,486]
["Определение концентрации антистрептолизина-О в сыворотке крови","A12.06.015",471,4,471]
["Определение концентрации мочевой кислоты в сыворотке (плазме) крови","А09.05.018",220,4,220]
["Определение концентрации гликированного гемоглобина( НbА1С) цельной крови","А09.05.083",263,4,263]
["Определение концентрации микроальбумина в суточной моче","А09.28003.001",269,4,269]
["Определение концентрации кальция в суточной моче","А09.28.012",272,4,272]
["Определение концентрации неорганического фосфора в суточной моче","А09.28.026",275,4,275]
["Определение концентрации мочевой кислоты в суточной моче","A09.28.010 ",264,4,264]
["Определение диастазы мочи (определение активности альфа-амилазы в моче)","А09.28.027",245,4,245]
["Определение концентрации креатинина в моче","A09.28.006.001",262,4,262]
["Определение концентрации общего белка в спинномозговой жидкости (СМЖ) ","А09.223.004",304,4,304]
["Определение концентрации глюкозы в спинномозговой жидкости (СМЖ) ","А09.23.003",221,4,221]
["Определение концентрации хлоридов в спинномозговой жидкости (СМЖ) ","А09.23.012",274,4,274]
["Исследование крови на сифилис (определение суммарных антител G, M, A к T.pallidum)в сыворотке крови","A26.06.082.002",520,3,{"$f":"VLOOKUP(A72,A72:D517,3,0)","v":520}]
["Гепатит В (австралийский антиген / HBsAg) в сыворотке крови","A26.06.036",602,3,602]
["Гепатит С (суммарные антитела анти-ВГС / anti-HCV) в сыворотке крови","A26.06.041",516,3,516]
["Определение антител классов G (IgG) к вирусу простого герпеса (Herpes simplex virus 1, 2) в сыворотке крови","A26.06.045",759,3,759]
["Определение антител классов M (IgM) к вирусу простого герпеса (Herpes simplex virus 1, 2) в сыворотке крови","A26.06.045",751,3,751]
["Определение антител классов G (IgG) к цитомегаловирусу в сыворотке крови","A26.06.022",788,3,788]
["Определение антител классов M (IgM) к цитомегаловирусу в сыворотке крови","A26.06.022",746,3,746]
["Определение антител G (IgG) к возбудителю токсоплазмоза (Toxoplasma gondii) в сыворотке крови человека","A26.06.081",808,3,808]
["Определение антител M (IgM) к возбудителю токсоплазмоза (Toxoplasma gondii) в сыворотке крови человека","A26.06.081",807,3,807]
["Определение тиреотропного гормона (ТТГ) в сыворотке крови человека","A12.06.031",447,3,447]
["Определение свободного тироксина (Т4 свободный) в сыворотке крови человека","A09.05.063",452,3,452]
["Определение общего тироксина (Т4 общий) в сыворотке крови человека","A09.05.064",503,3,503]
["Определение свободного трийодтиронина (Т3 свободный) в сыворотке крови человека","A09.05.062",518,3,518]
["Определение общего тирийодтиронина (Т3 общий ) в сыворотке крови человека","A09.05.060",486,3,486]
["Определение аутоантител к тироидной пероксидазе (анти-ТПО) в сыворотке крови человека","A12.06.045",574,3,574]
["Определение кортизола  в сыворотке крови человека","   A09.05.135",536,3,536]
["Определение фолликулостимулирующего гормона (ФСГ)  в сыворотке крови человека","A09.05.132",557,3,557]
["Определение лютеинизируещего гормона (ЛГ)  в сыворотке крови человека","A09.05.131",504,3,504]
["Определение прогестерона в сыворотке крови человека","A09.05.151",634,3,634]
["Определение пролактина в сыворотке крови человека","A09.05.153",602,3,602]
["Определение тестостерона в сыворотке крови человека","А09.05.078",589,3,589]
["Определение эстрадиола в сыворотке крови человека","A09.05.154",811,3,811]
["Определение антител к вирусу Эпштейна-Барра в сыворотке крови ","А26.06.028",872,3,872]
["Исследование уровня  прокальцитонина в сыворотке крови ","А09.05.209",818,3,818]
["Артериально-стимулированный венозный забор крови( забор крови из вены)","A06.12.012.001",159,2,159]
["Рентгенография дорсального отдела позвоночника","A06.03.013",832,5,832]
["Рентгенография дорсолюмбального отдела позвоночника","A06.03.014",832,5,832]
["Рентгенография поясничного отдела позвоночника","A06.03.015",832,5,832]
["Рентгенография одного отдела позвоночника ",null,832,5,832]
["Рентгенография крестца и копчика","A06.03.017",832,5,832]
["Рентгенография позвоночника, специальные исследования и проекции","A06.03.018",832,5,832]
["Рентгенография всего черепа","A06.03.005",678,5,678]
["Рентгенография черепа тангенциальная","A06.03.001",678,5,{"$f":"VLOOKUP(A104,A104:D549,3,0)","v":678}]
["Рентгенография первого и второго шейного позвонка","A06.03.007",678,5,678]
["Рентгенография зубовидного отростка (второго шейного позвонка)","A06.03.009",678,5,678]
["Рентгенография шейного отдела позвоночника","A06.03.010",678,5,678]
["Рентгенография шейно-дорсального отдела позвоночника","A06.03.011",678,5,678]
["Рентгенография верхней конечности","A06.03.021",678,5,678]
["Рентгенография ключицы","A06.03.022",678,5,678]
["Рентгенография ребра(ер)","A06.03.023",678,5,678]
["Рентгенография грудины","A06.03.024",678,5,678]
["Рентгенография плеча","A06.03.025",678,5,678]
["Рентгенография лопатки","A06.03.026",678,5,678]
["Рентгенография головки плечевой кости","A06.03.027",678,5,678]
["Рентгенография плечевой кости","A06.03.028",678,5,678]
["Рентгенография локтевой кости и лучевой кости","A06.03.029",678,5,678]
["Рентгенография нижней конечности","A06.03.036",678,5,678]
["Рентгенография подвздошной кости","A06.03.037",678,5,678]
["Рентгенография седалищной кости","A06.03.038",678,5,678]
["Рентгенография лонного сочленения","A06.03.040",678,5,678]
["Рентгенография всего таза","A06.03.041",678,5,678]
["Рентгенография головки и шейки бедренной кости","A06.03.042",678,5,678]
["Рентгенография бедренной кости","A06.03.043",678,5,678]
["Рентгенография диафиза бедренной кости","A06.03.044",678,5,678]
["Рентгенография коленной чашечки","A06.03.045",678,5,678]
["Рентгенография большой берцовой и малой берцовой костей","A06.03.046",678,5,678]
["Рентгенография диафиза большой берцовой и малой берцовой костей","A06.03.047",678,5,678]
["Рентгенография лодыжки","A06.03.048",678,5,678]
["Рентгенография костей лицевого скелета","A06.03.056",678,5,678]
["Рентгенография черепа в прямой проекции","A06.03.060",678,5,678]
["Рентгенография межпозвоночных сочленений","A06.04.002",678,5,678]
["Рентгенография локтевого сустава","A06.04.003",678,5,678]
["Рентгенография лучезапястного сустава","A06.04.004",678,5,678]
["Рентгенография коленного сустава","A06.04.005",678,5,678]
["Рентгенография плечевого сустава","A06.04.010",678,5,{"$f":"VLOOKUP(A136,A136:D581,3,0)","v":678}]
["Рентгенография бедренного сустава","A06.04.011",678,5,678]
["Рентгенография голеностопного сустава","A06.04.012",678,5,678]
["Рентгенография акромиально-ключичного сустава","A06.04.013",678,5,678]
["Рентгенография грудино-ключичного сочленения","A06.04.014",678,5,678]
["Прицельная рентгенография органов грудной клетки","A06.09.007.001",678,5,678]
["Рентгенография легких","A06.09.007.002",678,5,678]
["Рентгенография желудочно-кишечная","A06.16.009",678,5,678]
["Рентгенография средней части брюшной полости","A06.17.001",678,5,678]
["Рентгеноконтроль прохождения контраста по желудку, тонкой и ободочной кишке","A06.17.002",678,5,678]
["Рентгеноконтроль прохождения контраста по толстому кишечнику","A06.18.002",678,5,678]
["Рентгенография нижней части брюшной полости","A06.19.001",678,5,678]
["Обзорный снимок брюшной полости и органов малого таза","A06.30.004",678,5,678]
["Рентгенография запястья","A06.03.030",495,5,495]
["Рентгенография пясти","A06.03.031",495,5,495]
["Рентгенография кисти руки","A06.03.032",495,5,495]
["Рентгенография фаланг кисти","A06.03.033",495,5,495]
["Рентгенография пальцев руки","A06.03.034",495,5,495]
["Рентгенография большого пальца руки","A06.03.035",495,5,495]
["Рентгенография предплюсны","A06.03.049",495,5,495]
["Рентгенография пяточной кости","A06.03.050",495,5,495]
["Рентгенография плюсны и фаланг стопы","A06.03.051",495,5,495]
["Рентгенография стопы","A06.03.052",495,5,495]
["Рентгенография пальцев ноги","A06.03.054",495,5,495]
["Рентгенография большого пальца стопы","A06.03.055",495,5,495]
["Рентгенография дорсального отдела позвоночника 2 проекции ","A06.03.013",1042,6,1042]
["Рентгенография дорсолюмбального отдела позвоночника 2 проекции ","A06.03.014",1042,6,1042]
["Рентгенография поясничного отдела позвоночника 2 проекции ","A06.03.015",1042,6,1042]
["Рентгенография одного отдела позвоночника 2 проекции ",null,1042,6,1042]
["Рентгенография крестца и копчика 2 проекции ","A06.03.017",1042,6,1042]
["Рентгенография позвоночника, специальные исследования и проекции 2 проекции ","A06.03.018",1042,6,1042]
["Рентгенография всего черепа 2 проекции ","A06.03.005",888,6,888]
["Рентгенография черепа тангенциальная 2 проекции ","A06.03.001",888,6,{"$f":"VLOOKUP(A168,A168:D613,3,0)","v":888}]
["Рентгенография первого и второго шейного позвонка 2 проекции ","A06.03.007",888,6,888]
["Рентгенография зубовидного отростка (второго шейного позвонка) 2 проекции ","A06.03.009",888,6,888]
["Рентгенография шейного отдела позвоночника 2 проекции ","A06.03.010",888,6,888]
["Рентгенография шейно-дорсального отдела позвоночника 2 проекции ","A06.03.011",888,6,888]
["Рентгенография верхней конечности 2 проекции ","A06.03.021",888,6,888]
["Рентгенография ключицы 2 проекции ","A06.03.022",888,6,888]
["Рентгенография ребра(ер) 2 проекции ","A06.03.023",888,6,888]
["Рентгенография грудины 2 проекции  ","A06.03.024",888,6,888]
["Рентгенография плеча 2 проекции ","A06.03.025",888,6,888]
["Рентгенография лопатки 2 проекции ","A06.03.026",888,6,888]
["Рентгенография головки плечевой кости 2 проекции ","A06.03.027",888,6,888]
["Рентгенография плечевой кости 2 проекции ","A06.03.028",888,6,888]
["Рентгенография локтевой кости и лучевой кости 2 проекции ","A06.03.029",888,6,888]
["Рентгенография нижней конечности 2 проекции ","A06.03.036",888,6,888]
["Рентгенография подвздошной кости 2 проекции ","A06.03.037",888,6,888]
["Рентгенография седалищной кости 2 проекции ","A06.03.038",888,6,888]
["Рентгенография лонного сочленения 2 проекции ","A06.03.040",888,6,888]
["Рентгенография всего таза 2 проекции ","A06.03.041",888,6,888]
["Рентгенография головки и шейки бедренной кости 2 проекции ","A06.03.042",888,6,888]
["Рентгенография бедренной кости 2 проекции ","A06.03.043",888,6,888]
["Рентгенография диафиза бедренной кости 2 проекции ","A06.03.044",888,6,888]
["Рентгенография коленной чашечки 2 проекции ","A06.03.045",888,6,888]
["Рентгенография большой берцовой и малой берцовой костей 2 проекции ","A06.03.046",888,6,888]
["Рентгенография диафиза большой берцовой и малой берцовой костей 2 проекции ","A06.03.047",888,6,888]
["Рентгенография лодыжки 2 проекции ","A06.03.048",888,6,888]
["Рентгенография костей лицевого скелета 2 проекции ","A06.03.056",888,6,888]
["Рентгенография черепа в прямой проекции 2 проекции ","A06.03.060",888,6,888]
["Рентгенография межпозвоночных сочленений 2 проекции ","A06.04.002",888,6,888]
["Рентгенография локтевого сустава 2 проекции ","A06.04.003",888,6,888]
["Рентгенография лучезапястного сустава 2 проекции ","A06.04.004",888,6,888]
["Рентгенография коленного сустава 2 проекции ","A06.04.005",888,6,888]
["Рентгенография плечевого сустава 2 проекции ","A06.04.010",888,6,{"$f":"VLOOKUP(A200,A200:D645,3,0)","v":888}]
["Рентгенография бедренного сустава 2 проекции ","A06.04.011",888,6,888]
["Рентгенография голеностопного сустава 2 проекции ","A06.04.012",888,6,888]
["Рентгенография акромиально-ключичного сустава 2 проекции ","A06.04.013",888,6,888]
["Рентгенография грудино-ключичного сочленения 2 проекции ","A06.04.014",888,6,888]
["Прицельная рентгенография органов грудной клетки 2 проекции ","A06.09.007.001",888,6,888]
["Рентгенография легких 2 проекции  ","A06.09.007.002",888,6,888]
["Рентгенография желудочно-кишечная 2 проекции ","A06.16.009",888,6,888]
["Рентгенография средней части брюшной полости 2 проекции ","A06.17.001",888,6,888]
["Рентгеноконтроль прохождения контраста по желудку, тонкой и ободочной кишке 2 проекции ","A06.17.002",888,6,888]
["Рентгеноконтроль прохождения контраста по толстому кишечнику 2 проекции ","A06.18.002",888,6,888]
["Рентгенография нижней части брюшной полости 2 проекции ","A06.19.001",888,6,888]
["Обзорный снимок брюшной полости и органов малого таза 2 проекции ","A06.30.004",888,6,888]
["Рентгенография запястья 2 проекции ","A06.03.030",705,6,705]
["Рентгенография пясти 2 проекции ","A06.03.031",705,6,705]
["Рентгенография кисти руки 2 проекции ","A06.03.032",705,6,705]
["Рентгенография фаланг кисти 2 проекции ","A06.03.033",705,6,705]
["Рентгенография пальцев руки 2 проекции ","A06.03.034",705,6,705]
["Рентгенография большого пальца руки 2 проекции ","A06.03.035",705,6,705]
["Рентгенография предплюсны 2 проекции ","A06.03.049",705,6,705]
["Рентгенография пяточной кости 2 проекции ","A06.03.050",705,6,705]
["Рентгенография плюсны и фаланг стопы 2 проекции ","A06.03.051",705,6,705]
["Рентгенография стопы в двух проекциях 2 проекции ","A06.03.053",705,6,705]
["Рентгенография пальцев ноги 2 проекции ","A06.03.054",705,6,705]
["Рентгенография большого пальца стопы 2 проекции ","A06.03.055",705,6,705]
["Рентгеноскопия пищевода с контрастным веществом","A06.16.001.002",1325,6,{"$f":"VLOOKUP(A225,A225:D671,3,0)","v":1325}]
["Рентгеноскопия желудка и двенадцатиперстной кишки","A06.16.007",1325,6,1325]
["Ирригоскопия","A06.18.001",1325,6,1325]
[" Рентгенография стопы в двух проекциях ","A06.03.053",2885,6,2885]
[" Рентгенография стопы в боковой  проекции(с нагрузкой)( два снимка)","A06.03.053",2885,6,2885]
[" Рентгенография стопы в прямой  проекции(с нагрузкой)( два снимка)",null,2885,6,2885]
["Рентгенография височно-нижнечелюстного сустава (два снимка)","A06.04.001",2885,6,2885]
["Рентгенография нижней челюсти в боковой (косой) проекции ","A06.07.009",2885,6,2885]
["Рентгенография глазного отверстия и канала зрительного нерва ","A06.26.002",2885,6,2885]
["Рентгенография всего таза (дисплазия, с захватом в/3 бедер) ","А06.03.041",2885,6,2885]
["Рентгенография позвоночника, специальные исследования и проекции (два снимка)                                                                                                                           ","А06.03.018",2885,6,2885]
["Рентгенография придаточных пазух носа","A06.08.003",609,5,609]
["Рентгенография глазницы (два снимка)","A06.26.001",609,6,609]
[" Магнитно-резонансная томография одной анатомической зоны  без контраста: ","A05.01.002;  A05.02.002;  A05.03.001; A05.03.001;  A05.04.001;  A05.08.001;  A05.08.002;   А05.11.001; A05.14.001;  A05.15.001;  A05.15.002; A05.23.009;  A05.23.009.004; A05.23.009.010; A05.26.008;  A05.28.002; A05.30.004; A05.30.005; A05.30.007; A05.30.010;  A05.30.010.001;  A05.30.011;  A05.30.012;",3573,7,3573]
["МРТ исследования, одной анатомической зоны:","A05.01.002, A05.02.002, A05.03.001, A05.03.002, A05.04.001, A05.08.001, A05.08.002, А05.11.001, A05.14.001, A05.14.002, A05.15.001, A05.15.002, A05.23.009, A05.23.009.004, A05.23.009.005, A05.23.009.010, A05.23.009.014, A05.26.008, A05.28.002, A05.30.004, A05.30.005, A05.30.007, A05.30.010, A05.30.010.001, A05.30.011, A05.30.012) ",4556,7,4556]
["Контраст Гадовист 7,5 мл",null,3707,9,3707]
["Контраст Гадовист 15 мл  ",null,7323,9,7323]
["КТ одной анатомической зоны без контраста (25минут)"," А06.03.002;  А06.03.002.002;  А06.03.002.003;  А06.03.002.004;А06.03.012; А06.03.021.001; А06.03.036.001; А06.03.058; А06.03.058.001; А06.03.058.002; А06.03.062; А06.04.017; А06.04.017.001; А06.08.007; А06.08.007.001; А06.08.007.003;  А06.09.005; А06.09.005.001; А06.20.002; А06.20.002.001;А06.21.003; А06.25.003; А06.25.003.001; А06.26.006; А06.28.009; А06.28.009.002; А06.30.010;",1930,10,1930]
["КТ одной анатомической зоны без контраста (40 минут): брюшной полости,  забрюшинного пространства.","А06.30.005; А06.30.005.001;А06.30.007; А06.30.007.001;",2641,10,2641]
["КТ одной анатомической зоны с контрастам( 40минут)"," А06.03.002;  А06.03.002.002;  А06.03.002.003;  А06.03.002.004;А06.03.012; А06.03.021.001; А06.03.036.001; А06.03.058; А06.03.058.001; А06.03.058.002; А06.03.062; А06.04.017; А06.04.017.001; А06.08.007; А06.08.007.001; А06.08.007.003;  А06.09.005; А06.09.005.001; А06.20.002; А06.20.002.001;А06.21.003; А06.25.003; А06.25.003.001; А06.26.006; А06.28.009; А06.28.009.002; А06.30.010;",4547,10,4547]
["КТ одной анатомической зоны с контрастом (60 минут): брюшной полости,  забрюшинного пространства.","А06.03.021.002; А06.03.021.003",5496,10,5496]
["* Стоимость контрастного вещества оплачивается дополнительно (зависит от массы тела ребенка и определяестя врачем рентгенологом во время исследования)",null,null,null,0]
["Контраст \"Ультравист\" 30 мл.",null,653,9,653]
["Контраст \"Ультравист\" 50 мл.",null,718,9,718]
["Тотальная внутривенная анестезия у детей( КТ,МРТ исследования) ","B01.003.004.009",4690,27,4690]
["Описание и интерпретация компьютерных томограмм(КТ)","A06.30.002.001",873,28,873]
["Описание и интерпретация магнитно-резонансных томограмм (МРТ)","A06.30.002.002",873,28,873]
["Описание и интерпретация рентгенографических изображений ","A06.30.002",351,28,351]
["Фиброгастродуоденоскопия","А.03.16.001",2473,13,2473]
["Фиброколоноскопия","А.03.18.001",2935,12,2935]
["Гипербарическая оксигенация","A20.30.028; A01.06.001;  A20.15.001;  A20.18.002;  A20.24.005;   ",2899,14,2899]
["Электростимуляция для мышц глаз (1 глаз)","А17.26.003",868,15,868]
["Дарсонваль","А17.25.005",336,15,{"$f":"VLOOKUP(A257,A257:D703,3,0)","v":336}]
["Спелеотерапия",null,270,15,270]
["Фонофорез","А17.30.034",348,15,348]
["Электросон","А17.29.002",552,15,552]
["Магнитотерапия","А17.24.009",288,15,288]
["УВЧ",null,224,15,224]
["Лазерная терапия","А22.13.001",399,15,399]
["КУФ","А22.30.003",289,15,289]
["Аэронизация",null,155,15,155]
["Лекарственный электрофорез","А17.13.001",394,15,394]
["Общее местное УФО","А22.13.001",198,15,198]
["ДМВ-ранет",null,291,15,291]
["Парафин-озокерит","А20.03.003",574,15,574]
["Массаж (1 процед. ед.)","А21.01,005",207,15,207]
["Массаж (1,5 процед. ед.)","А21.01,.009",263,15,263]
["Массаж (2 процед. ед.)","А21.01.003",318,15,318]
["Массаж (2,5 процед. ед.)","А21.30.005",374,15,374]
["Массаж (3 процед. ед.)","А21.03.002",429,15,429]
["Массаж (3,5 процед.ед.) ",null,485,15,485]
["ЛФК (дети школьного возраста при индивидуальном методе занятий) (3,0 пр.ед)",null,361,15,361]
["ЛФК (дети школьного возраста при групповом методе занятий) ( 4,5 пр.ед)",null,496,15,496]
["ЛФК (дети дошкольного возраста при индивидуальном методе занятий) ( 2,5 пр.ед)",null,316,15,316]
["ЛФК (дети дошкольного возраста при групповом методе занятий) ( 3,0 пр.ед)",null,361,15,361]
["ЛФК индивидуальная разработка ( 1,0 пр.ед)",null,180,15,180]
["Ингаляция","А17.30.028",231,15,231]
["СТМ-терапия","А17.13.002",748,15,748]
["Стимуляция ректальная",null,968,15,968]
["Кислородный коктейль",null,106,15,106]
["ЭКГ иследование в 12 отведениях детям до 7 лет  (с заключением врача)","А05.10.002",662,17,662]
["ЭКГ иследование в 12 отведениях детям старше 7 лет (с заключением врача)","А05.10.002",583,18,583]
["Кардиоритмография до 7 лет (с заключением врача)",null,523,17,523]
["Кардиоритмография старше 7 лет  (с заключением врача)",null,456,18,456]
["Тест с физической нагрузкой 3 ЭКГ (бег на месте 2-3 мин) (с заключением врача)","А12.10.001",1368,19,{"$f":"VLOOKUP(A289,A289:D735,3,0)","v":1368}]
["Компьютерная спирография детям до 7 лет (с заключением врача)","А12.09.001",741,17,741]
["Компьютерная спирография детям старше 7 лет  (с заключением врача)","А12.09.001",687,18,687]
["Компьютерная спирография с бронхолитиками (с заключением врача)","А12.09.002",691,19,691]
["Компьютерная энцефалография детям до 7 лет  (с заключением врача)","А05.23.001.001",3085,17,3085]
["Компьютерная энцефалография детям старше 7 лет  (с заключением врача)","А05.23.001.001",2423,18,2423]
["Холтеровское суточное мониторирование  ЭКГ И АД 20-24 часа детям до 7 лет ( расшифровка холтеровского мониторирования)","А03.05.01",2858,17,2858]
["Холтеровское суточное мониторирование ЭКГ И АД  20-24 часа детям старше 7 лет ( расшифровка холтеровского мониторирования)","А03.05.01",2546,18,2546]
["Холтеровское суточное мониторирование ЭКГ И АД  свыше 24 часа детям до 7 лет ( расшифровка холтеровского мониторирования)","А03.05.01",3020,17,3020]
["Холтеровское суточное мониторирование  ЭКГ И АД  свыше 24 часа детям  старше 7 лет ( расшифровка холтеровского мониторирования)","А03.05.01",2711,18,2711]
["Эхоэнцефалоскопия-ЭХО ЭС детям до 7 лет",null,961,17,961]
["Эхоэнцефалоскопия-ЭХО ЭС детям  старше 7 лет",null,692,18,692]
["Компьтерная электромиография ЭМГ игольчатая стандартная (2 мышцы)  детям до 7 лет","А 05.02.001",2616,17,2616]
["Компьтерная электромиография ЭМГ игольчатая стандартная (2 мышцы)  детям старше 7 лет","А 05.02.001",2288,18,2288]
["Компьтерная электромиография ЭМГ исследование скорости распрорстранения возбуждения по моторным волокнам (2 нерва)  детям до 7 лет","А 05.24.001.001",1782,17,1782]
["Компьтерная электромиография ЭМГ исследование скорости распрорстранения возбуждения по моторным волокнам (2 нерва)  детям старше 7 лет","А 05.24.001.001",1618,18,1618]
["Компьтерная электромиография ЭМГ исследование скорости распрорстранения возбуждения по сенсорным волокнам (2 нерва)  детям до 7 лет","А 05.24.001.014",1070,17,1070]
["Компьтерная электромиография ЭМГ исследование скорости распрорстранения возбуждения по сенсорным волокнам (2 нерва)  детям старше 7 лет","А 05.24.001.014",1231,18,1231]
["Прием (осмотр, консультация) врача аллерголога-иммунолога первичный","В01.002.001",1249,20,1249]
["Прием (осмотр, консультация) врача- пульмонолога первичный","В01.037.001",1241,20,1241]
["Прием (осмотр, консультация) врача-гастроэнтеролога первичный","В01.004.001",1241,20,1241]
["Прием (осмотр, консультация) врача-дерматовенеролога первичный","В01.008.001",1241,20,1241]
["Прием (осмотр, консультация) врача-нефролога первичный","В01.025.001",1241,20,1241]
["Консультация врача-детского-эндокринолога","В01.058.003",1241,20,1241]
["Прием (осмотр, консультация) врача-детского уролога-андролога первичный","В01.053.003",1650,20,1650]
["Прием (осмотр, консультация) врача-детского-хирурга первичный","В01.010.001",1650,20,1650]
["Консультация врача-челюстно-лицевого хирурга","В01.068.001",1650,20,1650]
["Прием (осмотр, консультация) врача-оториноларинголога первичный","В01.028.001",1650,20,1650]
["Прием (осмотр, консультация) врача-акушера-гинеколога  первичный","В01.001.001",1650,20,1650]
["Прием (осмотр, консультация) врача-травматолога-ортопеда  первичный","В01.050.001",1625,20,1625]
["Консультация врача-нейрохирурга","В01.024.001",1617,20,1617]
["Прием (осмотр, консультация) врача-невролога первичный","В01.023.001",1617,20,1617]
["Прием (осмотр, консультация) врача-педиатра первичный","В01.031.001",1617,20,{"$f":"VLOOKUP(A321,A321:D767,3,0)","v":1617}]
["Консультация врача-детского-кардиолога","В01.015.003",1617,20,1617]
["Консультация врача-ревматолога","В01.040.001",1617,20,1617]
["Прием (осмотр, консультация) врача-офтальмолога","В01.029.001",1617,20,1617]
["Консультация врача-гематолога","В01.005.001",1617,20,1617]
["Консультация врача-сурдолога-оториноларинголога","В01.046.001",1617,20,1617]
["Перевязка","А15.01.001",628,21,{"$f":"VLOOKUP(A327,A327:D774,3,0)","v":628}]
["Коагуляция","А17.30.021",806,21,806]
["Снятие швов","А16.01.001",490,21,490]
["Удаление новообразования","А16.01.017, А16.01.031.006, А16.30.032",1075,21,1075]
["Удаление моллюска","А16.01.020",1109,21,1109]
["Френулотомия","А16.07.044",586,21,586]
["Френулопластика","А16.07.044",960,21,960]
["Резекция почки","А16.28.003",49450,22,49450]
["Радикальная нефрэктомия","А16.28.004",49450,22,49450]
["Пластика лоханки и мочеточника","А16.28.007",49450,22,49450]
["Резекция мочеточника и лоханки с пластикой лоханки и мочеточника","А16.28.007.001",49450,22,49450]
["Удаление камней мочеточника","А16.28.012",49450,22,49450]
["Удаление камней мочевого пузыря","А16.28.017",49450,22,49450]
["Дивертикулэктомия","А16.28.028",49450,22,49450]
["Иссечение оболочек яичка","А16.21.024",6192,22,6192]
["Оперативное лечение пахово-бедренной грыжи","А16.30.001",6192,22,6192]
["Оперативное лечение пуоучной грыжи","А1630.002",6192,22,6192]
["Киста семенного канатика","А16.21.024",6192,22,6192]
["Обрезание крайней плоти","А16.21.013",6192,22,6192]
["Грыжа белой линии живота","А16.01.017",6192,22,6192]
["Удаление доброкачественного образования кожи и подкожной жировой клечатки","А16.01.018",6192,22,6192]
["Низведение яичка при крипторхизме","А16.21.018",6192,22,6192]
["Лимфаденэктомия подмышечная","А16.06.006.001",6192,22,6192]
["Лапроскопическое клипирование левой яичковой вены","А16.28.045.001",13360,22,13360]
["Удаление полипа толстой кишки ","А16.18.019",10820,22,10820]
["Удаление полипа толстой кишки эндоскопическое","А16.18.019.001",11087,22,11087]
["Цистоскопия с моделированием устья мочеточника (с применением \"Дэм-геля\") ","А03.28.001.001",17980,22,17980]
["Цистоскопия с моделированием устья мочеточника (с применением \"уродекс-геля\") ","А03.28.001.001",33820,22,33820]
["Резекция легкого","А16.09.015",72825,22,72825]
["Иссечение рубцов кожи челюстно-лицевой области","А16.01.023",7568,22,7568]
["Пластика уздечки языка","А16.07.044",5790,22,5790]
["Хейлоринопластика","А16.07.069",14910,22,14910]
["Ретинированные зубы, удаление зуба","А16.07.001",9983,22,9983]
["Наложение энтеро-энтероанастомоза ","A16.17.012 ",49461,22,49461]
["Операция на слезных органах","А16.26.011",4650,23,4650]
["Операция удаление халязиона","А16.26.013",5560,23,5560]
["Операция удаление капилярной гемангиомы","А16.26.121",5805,23,5805]
["Операция на веках","А16.26.021.001",9696,23,9696]
["Операция удаление доброкачественного новообразования","А16.26.106",9696,23,9696]
["Операция склеропластика с использованием трансплатнантов","А16.26.075.001",9992,23,9992]
["Операция гонеотомия","А16.26.112",19717,23,19717]
["Операция удаление катаракты","А16.08.071",28278,23,28278]
["Травматолого-ортопедическая операция  1 категории 25 минут + (20 минут введение в наркоз, анестезия, выход из наркоза)",null,5319,28,{"$f":"VLOOKUP(A369,A369:D820,3,0)","v":5319}]
["Травматолого-ортопедическая операция  2 категории 60 минут + (30 минут введение в наркоз, анестезия, выход из наркоза)",null,8343,28,{"$f":"VLOOKUP(A370,A370:D821,3,0)","v":8343}]
["Травматолого-ортопедическая операция  3 категории 180 минут + (100 минут введение в наркоз, анестезия, выход из наркоза)",null,16813,28,{"$f":"VLOOKUP(A371,A371:D822,3,0)","v":16813}]
["Травматолого-ортопедическая операция 4 категории 200 минут + (115 минут введение в наркоз, анестезия, выход из наркоза)",null,20797,28,{"$f":"VLOOKUP(A372,A372:D823,3,0)","v":20797}]
["Ультразвуковое исследование(УЗИ) щитовидной железы","A04.22.001",714,16,{"$f":"VLOOKUP(A373,A373:D824,3,0)","v":714}]
["Ультразвуковое исследование (УЗИ)  мочевого пузыря","A04.28.003",714,16,714]
["Ультразвуковое исследование (УЗИ)  объема остаточной мочи","A04.28.002.001",714,16,714]
["Ультразвуковое исследование (УЗИ)  вилочковой железы","A04.06.003",714,16,714]
["Ультразвуковое исследование  (УЗИ) печени","A04.14.001",901,16,901]
["Ультразвуковое исследование (УЗИ) желчного пузыря","A04.14.002",901,16,901]
["Ультразвуковое исследование (УЗИ) мягких тканей (одна анатомическая зона)","A04.01.001",901,16,901]
["Ультразвуковое исследование (УЗИ) почек","A04.28.002.001",901,16,901]
["Ультразвуковое исследование  (УЗИ) плевральной полости","A04.09.001",901,16,901]
["Ультразвуковое исследование (УЗИ) поджелудочной железы","A04.15.001",901,16,901]
["Ультразвуковое исследование (УЗИ) селезенки","A04.06.001",901,16,901]
["Ультразвуковое исследование (УЗИ) слюнных желез","A04.07.002",901,16,901]
["Ультразвуковое исследование (УЗИ) лимфатических узлов (одна анатомическая зона)","A04.06.002",901,16,901]
["Ультразвуковое исследование (УЗИ) забрюшинного пространства","A04.28.001",901,16,901]
["Ультразвуковое исследование (УЗИ) мошонки (яички, придатки)","A04.28.003",901,16,901]
["Ультразвуковое исследование (УЗИ) надпочечников","A04.22.002",901,16,901]
["Ультразвуковое исследование (УЗИ) определение жидкости в брюшной полости","A04.16.001",901,16,901]
["Ультразвуковое исследование (УЗИ) мочеточников","A04.28.002.002",901,16,901]
["Ультразвуковое исследование (УЗИ) матки и придатков трансабдоминальное","A04.20.001",1087,16,1087]
["Ультразвуковое исследование (УЗИ) головного мозга НСГ","A04.23.001",1274,16,1274]
["Ультразвуковое исследование  (УЗИ) суставов","A04.04.001",1274,16,1274]
["Ультразвуковое исследование (УЗИ)  суставов конечностей","A04.04.001",1397,16,1397]
["Ультразвуковое исследование (УЗИ) желчного пузыря с определением его сократимости","A04.14.002.001",2027,16,2027]
["Ультразвуковое исследование (УЗИ) органов брюшной полости (общее абдоминальное исследование)","A04.16.001",2027,16,2027]
["Ультразвуковое исследование (УЗИ) сердца с цветным картрированием","A04.10.002",2027,16,2027]
["Операция эндоскопическая шейверная аденотомия, двухсторонняя тонзиллэктомия","А16.08.001.001; А16.08.002.001",5415,25,5415]
["Операция двухсторонняя подслизистая радиоволновая редукция нижних носовых раковин, эндоскопическая шейверная аденотомия ","А16.08.010.001; А16.08.002.001",7560,25,7560]
["Операция двухсторонняя тонзиллотомия, эндоскопическая шейверная аденотомия","А16.08.064; А16.08.002.001",7665,25,7665]
["Операция эндоскопическая шейверная аденотомия","А16.08.002.001",7755,25,7755]
["Операция-эндоскопическая инфундибулотомия","А16.08.072",9025,25,9025]
["Операция эндоскопическая шейверная полипотомия носа (удаление антрохоанального полипа)","А16.08.009.001",11595,25,11595]
["Операция подслизистая резекция перегородки носа, двусторонняя подслизистая редукция нижних носовых раковин, эндоскопическая шейверная аденотомия","А16.08.064.001; А16.08.010.001; А16.08.002.001",11730,25,11730]
["Операция эндоскопическая на параназальных синусах","А16.08.071",12555,25,12555]
["Операция эндоскопическая шейверная аденотомия, миринготомия с шунтированием барабанной полости","А16.08.002.001; А16.25.011; А16.25.020",14890,25,14890]
["Стоимость 1 койко-дня пребывания                     в отделении",null,null,25,0]
["Консервативное лечение 1 койка-дня дневного стационара с медикаментами",null,471,28,471]
["Консервативное лечение 1 койка-дня дневного стационара без питания и медикаментав",null,251,28,251]
["Консервативное лечение 1 койка-дня   по паллиативу  с медикаментами",null,6870,28,6870]
["Консервативное лечение 1 койка-дня   по паллиативу  без питания и медикаметов",null,2692,28,2692]
["Питание лица осуществляющего уход за пациентами на грудном вскармливании (кормящие матери)",null,227,28,227]
["Питание лица осуществляющего уход за пациентами",null,227,28,227]
["Питание пациентов находящихся на круглосуточном стационаре",null,360,28,360]
["Питание пациентов находящихся на дневном стационаре",null,187,28,187]
["Консервативное лечение 1 койка-дня   пятиместной  палате стационара  с медикаментами без питания",null,4343,28,4343]
["Консервативное лечение 1 койка-дня в  четырехместной палате стационара с медикаментами без питания",null,4396,28,4396]
["Консервативное лечение 1 койка-дня в  трехместной палате стационара с медикаментами без питания",null,4484,28,4484]
["Консервативное лечение 1 койка-дня в  двухместной палате стационара с медикаментами без питания",null,4661,28,4661]
["Консервативное лечение 1 койка-дня в  одноместной палате стационара с медикаментами без питания",null,5189,28,5189]
["Консервативное лечение 1 койка-дня в  пятиместной палате стационара без питания и медикаментов",null,3420,28,3420]
["Консервативное лечение 1 койка-дня в  четырехместной палате стационара без питания и медикаментов",null,3473,28,3473]
["Консервативное лечение 1 койка-дня в  трехместной палате стационара без питания и медикаментов",null,3561,28,3561]
["Консервативное лечение 1 койка-дня в  двухместной палате стационара без питания и медикаментов",null,3738,28,3738]
["Консервативное лечение 1 койка-дня в  одноместной палате стационара без питания и медикаментов",null,4266,28,4266]
["Сиделка ( медицинская сестра) 60 мин","A13.30.001; A13.30.004; А13.30.006; А 13.30.007; A14.01.001; A14.01.002; A14.08.003; A14.26.001; A14.25.001; A14.30.010; A14.28.00; A14.08.004; A14.19.002; A14.19.003; А14.30.001; А14.30.012;",366,28,366]
["Сиделка ( младшая медицинская сестра) 60 мин","A13.30.001; A13.30.004; А13.30.006; А 13.30.007; A14.01.001; A14.01.002; A14.08.003; A14.26.001; A14.25.001; A14.30.010; A14.28.00; A14.08.004; A14.19.002; A14.19.003; А14.30.001; А14.30.012;",213,28,213]
["Бужирование пищевода (эндоскопически)","А16.16.006.001",4662,28,4662]
["Бронхоскопии медицинским организациям","А 03.09.001; А 03.09.003;",1759,1759,1759]
["Палата  повышенной комфортности  с дополнительным медицинским обслуживанием ",null,2525,null,2525]
["Молекулярно-биологического  исследования с использованием ПЦР","A26.08.027.001",1500,3,1500]
["Анестезия 25 мин",null,3309,28,3309]
["Анестезия 30 мин",null,3887,28,3887]
["Анестезия 45 мин",null,5009,28,5009]
["Анестезия до 80 мин",null,6988,28,6988]
["Анестезия до 120 мин",null,9395,28,9395]
["Анестезия до 150 мин",null,11112,28,{"$f":"VLOOKUP(A437,A437:D888,3,0)","v":11112}]
["Анестезия до 210 мин",null,12530,28,{"$f":"VLOOKUP(A438,A438:D889,3,0)","v":12530}]
["Анестезия до 270 мин",null,14117,28,{"$f":"VLOOKUP(A439,A439:D890,3,0)","v":14117}]
["Исследование экссудатов и транссудатов(перитариальная жидкость)",null,1193,1]
["Коагулограмма: Активированное частичное тромбопластиновое время (АЧТВ), Фибриноген \"А\"(ФА), Протромбин по Квику+МНО",null,845,4]
["Протромбин по Квику+ МНО",null,246,4]
["Активированное частичное тромбопластиновое время (АЧТВ)",null,427,4]
["Фибриноген \"А\"(ФА)",null,242,4]
["Агрегация тромбоцитов с  адреналином",null,579,4]
["Агрегация тромбоцитов с коллагеном",null,882,4]
["Агрегация тромбоцитов с ристомицином",null,852,4]
[" Агрегация тромбоцитов АДФ",null,640,4]
["Д-димер",null,328,4]
["Определение имунноглобулинов класса G   к ранним   антигенам      вируса  Эпштейн-Барра в сыворотке крови  ",null,871,3]
["Определение имунноглобулинов класса G   к  ядерному  антигену      вируса  Эпштейн-Барра в сыворотке крови  ",null,862,3]
["Определение имунноглобулинов класса М к капсидному   антигену      вируса  Эпштейн-Барра в сыворотке крови  ",null,881,3]
["Операция рецессия глазной мышцы",null,6784]
["Операция резекция глазной мышцы",null,6784]
["Операция миотомия, тенотомия глазной мышцы ",null,6784]
["Операция трансплантация глазной мышцы",null,6784]
["Оториноларингологическая Операция  1 категории сложности (20 мин.)","A16.08.014",3103]
["Оториноларингологическая Операция  2 категории сложности (60 мин.)","А16.08.010.001; А16.08.002.001; А16.08.064; А16.08.002.001; А16.08.002.001; А16.08.001.001;",6127]
["Оториноларингологическая Операция 3 категории сложности (90 мин.)","А16.08.002.001, А16.25.011; А16.25.020; А16.08.017.001; А16.08.009.001;",8286]
["Оториноларингологическая Операция 4 категории сложности (120 мин.)","А16.08.064.001, А16.08.010.001; А16.08.002.001;",9956]

{"sheet":"Сертиф","index":2,"n_rows":39,"n_cols":4,"rows_kept":39,"cut":false,"hidden":false,"merged":[]}
["ФИО","Отдел","Категор","Сертификат"]
["Янина Татьяна Юрьевна","Функциональная диагностика"," ","ФГБО УВО «Кубанский государственный медицинский университет МЗ РФ «Функциональная диагностика» 0123310108083 от 04.05.2017"]
["Краснова Виктория Валерьевна","Функциональная диагностика","высшая категория от 27.02.2013","ФГБУ ДПО \"Центральная медицинская академия \"Управление по делам РФ 0377180766879 от 04.12.2017года"]
["Скороходова Виктория Игоревна","Эндоскопия","высшая от 31.05.2016\\","КГМУ им. Георгевского –«Эндоскопия» Серия 0182140001708 №18/550 от 08.04.2015"]
["Дмитрюк Светлана Викторовна","Рентгенология","высшая от 11.11.2010","КГМУ им. Георгевского «Рентгенология» Серия 0182180442149 №07/2009 от 29.06.2015"]
["Лукьянец Лидия Владимировна","Клиническая лабораторная диагностика","высшая от 21.12.2015","ГБОУ ВПО «Северо-Западный ГМУ им. Мечникова» Серия 0178040003520 №36235 от 20.12.2014"]
["Шевченко Людмила Михайловна","Физиотерапия","высшая  от 01.06.2011","КГМУ им. Георгевского «Физиотерапия» Серия 0182140001907 № 20/750 от 09.04.2015"]
["Тукина Анна Михайловна","Нефрология","высшая  22.02.2012","Московская ордена Ленина и Трудового Красного Знамени медицинская академия им. И.М. Сеченова Серия017704№0014180 от 30.12.2014"]
["Балич Айше Якубовна","Стоматология хирургическая","высшая категория  от 18.12.2009","Стоматология хирургическая» Московская медицинская академия им. И.М. Сеченова Федерального агентства по здравоохранению и социальному развитию г. Москва №0377240831615 от 13.12.2015"]
["Олейник Анатолий Васильевич","Травматология и ортопедия","высшая категория от 30.07.2012","1. «Травматология и ортопедия» Московский государственный институт усовершенствования врачей №0377180375980 от 16.16.2015\n2. «Организация здравоохранения и общественное здоровье» Московская ордена Ленина и ордена Трудового Красного Знамени медицинская академия им. И.М. Сеченова №0177240119189 от 09.06.2015"]
["Абросимова Елена Ивановна","Неонатология","высшая от 20.12.2015","Неонатология» ФГУ «Научно-исследовательский институт кардиологии им. В.А. Алмазова Серия 0278180135929 №908 от 01.12.2014"]
["Тарасова Лариса Анатольевна","Акушерство и гинекология","высшая категория от 14.05.2014","1. «Акушерство и гинекология» КГМУ им. С.И. Георгевского серия 0182140000881 №01/1712 от 28.05.2015\n2. «Ультразвуковая диагностика» Челябинский ГМИ № 1174180413043 от 24.09.2015\n"]
["Кошевая Людмила Павловна","Гастроэнтерология","первая категория от 31.10.2012","ФГАОУ ВО \"Крымский федеральный университет им.В.И.Вернадского\" 0182180607482 от 21.11.2017 года"]
["Калинина Лариса Анатольевна","Дерматовенерология","высшая категория от 30.036.2016","«Дерматовенерология» ГБОУ ДПО «Российская медицинская академия последипломного образования» МЗ РФ Серия 0377060103467 №2Ц-15-101237 от 17.03.2015"]
["Ветрова Вера Владимировна","Педиатрия","вторая категория от 23.05.2012","«Гастроэнтерология» КФУ им. Вернадцкого МА им. Георгевского Серия 0182180443191 №18/2878 от 17.11.15"]
["Завгородняя Светлана Брониславовна","Биолог","Первая от 21.12.2015"]
["Симонян Мария Сергеевна","Оториноларингология"," ","Российский национальный исследовательский медицинский университет им. Н.И. Пирогова серия 0177240442660 №5071 от 27.03.2015"]
["Самисова Наталья Ивановна","Пульмонология","Высшая от 05.10.2011","КГМУ им . Георгевского «Пульмонология» серия 0182180441969 №18/1829 от 09.06.2015"]
["Требушенко Светлана Юрьевна","Гематология"," ","Российская медицинская академия Последипломного образования МЗ РФ «Гематология» серия 0377060171281 №2Ц-7-114438 от 22.11.2015"]
["Ковальчук Алексей Владимирович","Стоматология хирургическая"," ","КГМУ им. С.И. Георгевского «Стоматология хирургическая» серия 0182180442815 №16.2504 от 05.10.15"]
["Синцова Ирина Васильевна","Аллергология и иммунология","высшая от 22.04.2014","«Аллергология и иммунология» Российская медицинская академия Последипломного образования МЗ РФ серия 0377060164685 №2Ц-2-107517 от 05.06.2015\n\n«Пульмонология» ГБОУ ДПО «Российская медицинская академия Последипломного образования МЗ РФ» серия 0182180441970 №18/1830 от 09.06.2015\n"]
["Блажко Татьяна Григорьевна","Детская кардиология","первая от 13.03.2013","Медицинская академия им. Георгевского серия 01820180606396 №13/966 от 02.06.2016"]
["Бунчук Марина Михайловна","Неврология"," ","КГМУ им. Георгевского серия 0182140001326 №08/1185 от 14.04.2015"]
["Онищенко Зоя Владимировна","Офтальмология"," ","КГМУ им. Георгевского «Офтальмология» серия 0182140000963 №11/1792 от 02.06.2015"]
["Муединова Эльвира Разимовна","Неврология"," ","ФГБОУ ВО \"Санкт-петербурский государственный педиатрический медицинскийуниверситет МЗ РФ 0178270049699 от 15.10.2016"]
["Новакова Владислава Владимировна","Оториноларингология"," ","2й Московский ордена Ленина Государственный медицинский институт им. Н.И. Пирогова «Оториноларингология» серия 0177240442657 №5068 от 27.03.2014\nРоссийский национальный медицинский университет им. Н.И.Пирогова «Оториноларингология» серия 0177240443246 №5068 от 27.03.2015\n"]
["Турчанинова Людмила Ивановна","Детская эндокринология"," ","Федеральный центр сердца, крови и эндокринологии им. В.А. Алмазова Федерального агентства по высокотехнологичной медицинской помощи г. Санкт-Петербург серия 0278180135656 №635 от 02.08.2014"]
["Кушнерюк Светлана Ярославовна","Офтальмология"," ","«Офтальмология» КГМУ им. С.И. Георгевского серия 0182180442921 №11/2609 от 28.10.2015"]
["Кушнир Елена Федоровна","Аллергология и иммунология"," ","ГБОУ ДПО «Российская медицинская академия последипломного образования МЗ РФ» «Аллергология и иммунология» серия 0377060167209 №2Ц-2-109976 от 05.07.2015\n\n"]
["Сердюк Светлана Александровна","Травматология и ортопедия"," ","Институт последипломного профессионального образования ФМБЦ им. А.И. Бурназяна серия 0377180151481 №1973/15 от 27.04.2015"]
["Никифоров Константин Евгеньевич","Сурдология-оториноларингология"," ","Российская академия последипломного образования МЗ РФ «Сурдология-оториноларингология»\n №0377060182105 от 10.10.2015\n"]
["Каретникова Марина Сергеевна ","Ультразвуковая диагностика"," ","Российская медицинская академия Последипломного образования (ультразвуковая диагностика) № 0377060179388 от 04.05.2016"]
["Бабенко Татьяна Владимировна","Детская урология-андрология, детская хирургия"," ","Российская медицинская академия непрерывного профессионального обучения \"Детская хирургия\" от 05.03.2018 №0377180733037; Российская медицинская академия последипломного образования \"Детская урология - андрология\" от 12.10.2015 № 0377060182525"]
["Пейливанова Ольга Викторовна","Акушерство и гинекология"," ","Негосударственное образовательное частное учреждение профессионального образования \"Высшая медицинская школа\" № 1177240786524 04.12.2015"]
["Сысоева Наталья Александровна","Педиатрия"," ","«Педиатрия» «КФУ» 0182180607012 от 30.11.2016"]
["Верменич Ксения Валериевна","Детская хирургия"," ","ФГАОУ ВО\"КФУ им. В.И. Вернадского\" 0182180507077 от 29.08.2016 года"]
["Жогова Ольга Валерьевна","«Ревматология »"," ","Первый Московский ГМУ им. И.М. Сеченова № 0177040049406 от 12.05.2016 «Ревматология»"]
["Гожик Алина Игоревна","«Гастроэнтерология»"," ","университет им. В.И. Вернадского» Медицинской академии С.И. Георгиевского; сертификат 018210607688 №18/877 от 26.12.2017"]
["Ивановский Сергей Владимирович","«Ревматология»"," ","Первый Московский ГМУ им. И.М. Сеченова № 0177040029495 от 12.05.2015 «Ревматология»"]

{"sheet":"Лист2","index":3,"n_rows":0,"n_cols":0,"rows_kept":0,"cut":false,"hidden":false,"merged":[]}

{"sheet":"shHelp","index":4,"n_rows":1,"n_cols":1,"rows_kept":1,"cut":false,"hidden":false,"merged":[]}
["Удобный поиск в выпадающем списке .\n\nДанная надстройка предоставляет возможность вставлять значения из списков в текущую ячейку листа.\nЗапуск надстройки производится несколькими способами:\n1) Сочетанием клавиш CTRL+SHIFT+R\n2) ДаблКликом (можно отключить в настройках)\n3) Нажатием на строку меню \"Поиск в выпадающем списке\", находящейся на вкладке \"Сервис\" в 2003 Excel и на вкладке \"Надстройки\"  в  2007.\n\nФорма надстройки открывается не модально, поэтому для того что бы изменить результирующую ячейку форму можно не закрывать. Для поиска значения из списка необходимо ввести часть слова для поиска. В результирующую ячейку вставляется выбранное значение из найденных вариантов. Вставка значения в ячейку происходит при нажатии на кнопку \"Вставить в ячейку\", или по ЕНТЕР или по двойному щелчку мыши.\n\nДля выбора параметров работы надстройки, а также для управления списками воспользуйтесь кнопкой \"Настройки\".\n\nВерсия: 12.1\nАвтор: GIG_ant\nЯнварь 2012 г."]

{"sheet":"shLists","index":5,"n_rows":460,"n_cols":2,"rows_kept":460,"cut":false,"hidden":true,"merged":[]}
["ПРАЙС","Специалист"]
["Общий анализ крови на геманализаторе","Янина Татьяна Юрьевна"]
["Тромбоциты","Краснова Виктория Валерьевна"]
["Адгезия тромбоцитов","Скороходова Виктория Игоревна"]
["Ретикулоциты","Дмитрюк Светлана Викторовна"]
["Длительность кровотечения","Лукьянец Лидия Владимировна"]
["Свертываемость","Шевченко Людмила Михайловна"]
["Волчаночные клетки","Тукина Анна Михайловна"]
["Мононуклеоз","Балич Айше Якубовна"]
["Реакция лейкоцитолиза","Олейник Анатолий Васильевич"]
["Осм. Резистентность","Абросимова Елена Ивановна"]
["СМЖ","Тарасова Лариса Анатольевна"]
["ОАК +СОЭ+формула","Кошевая Людмила Павловна"]
["СОЭ","Калинина Лариса Анатольевна"]
["Исследование крови на малярию","Ветрова Вера Владимировна"]
["Общий анализ мочи ","Завгородняя Светлана Брониславовна"]
["Ацетон","Симонян Мария Сергеевна"]
["Пр. Зимницкого","Самисова Наталья Ивановна"]
["Пр. Нечипоренко","Требушенко Светлана Юрьевна"]
["СЭБ","Ковальчук Алексей Владимирович"]
["Кал на я/гл","Синцова Ирина Васильевна"]
["Энтеробиоз","Блажко Татьяна Григорьевна"]
["Копроцитограмма","Бунчук Марина Михайловна"]
["Простейшие ","Онищенко Зоя Владимировна"]
["Кал на скрытую кровь","Муединова Эльвира Разимовна"]
["Формула ","Новакова Владислава Владимировна"]
["Мазок на ГН","Турчанинова Людмила Ивановна"]
["Мазок на А/К","Кушнерюк Светлана Ярославовна"]
["Определение уробилина и билирубина в моче","Кушнир Елена Федоровна"]
["Определение гемоглобина в моче","Сердюк Светлана Александровна"]
["Определение гемосидерина в моче","Никифоров Константин Евгеньевич"]
["Определение концентрации глюкозы в сыворотке (плазме) крови","Каретникова Марина Сергеевна "]
["Определение концентрации глюкозы в капиллярной крови с депротеинизацией","Бабенко Татьяна Владимировна"]
["Определение концентрации общего белка  в сыворотке (плазме) крови","Пейливанова Ольга Викторовна"]
["Определение концентрации альбумина в сыворотке (плазме) крови","Сысоева Наталья Александровна"]
["Определение концентрации мочевины в сыворотке (плазме) крови","Верменич Ксения Валериевна"]
["Определение концентрации креатинина в сыворотке (плазме) крови","Жогова Ольга Валерьевна"]
["Определение концентрации общего холестерина в сыворотке (плазме) крови","Гожик Алина Игоревна"]
["Определение концентрации билирубина и его фракций  в сыворотке (плазме) крови","Ивановский Сергей Владимирович"]
["Определение концентрации тимоловой пробы в сыворотке (плазме) крови"]
["Определение активности АлАТ (АЛТ, аланинаминотрансферазы) в сыворотке (плазме) крови"]
["Определение активности АсАТ (АСТ,аспартатаминотрансферазы) в сыворотке (плазме) крови"]
["Определение активности щелочной фосфатазы в сыворотке (плазме) крови"]
["Определение активности α-амилазы (альфа-амилазы) в сыворотке (плазме) крови"]
["Определение активности ГГТ (гамма-глутамилтрансферазы,гамма-глутамилтранспептидазы) в сыворотке (плазме) крови"]
["Определение активности ЛДГ (лактатдегидрогеназы) в сыворотке (плазме) крови"]
["Определение триглицеридов в сыворотке крови"]
["Определение активности креатинкиназы в сыворотке крови"]
["Определение концентрации β-липопротеидов (бета-липопротеидов) в сыворотке  крови"]
["Определение концентрации магния в сыворотке (плазме) крови"]
["Определение концентрации калия в сыворотке (плазме) крови"]
["Определение концентрации натрия в сыворотке крови"]
["Определение концентрации хлоридов в сыворотке (плазме) крови"]
["Определение концентрации кальция в сыворотке (плазме) крови"]
["Определение концентрации неорганического фосфора в сыворотке крови"]
["Определение концентрации железа и ОЖСС (общей железосвязывающей способности сыворотки) в сыворотке (плазме) крови"]
["Латексный тест для определения С-реактивного белка (СРБ) в сыворотке крови"]
["Определение концентрации С-реактивного белка (СРБ)  в сыворотке крови"]
["Определение концентрации ревматоидного фактора в сыворотке крови"]
["Определение концентрации антистрептолизина-О в сыворотке крови"]
["Определение концентрации мочевой кислоты в сыворотке (плазме) крови"]
["Определение концентрации гликированного гемоглобина( НbА1С) цельной крови"]
["Определение концентрации микроальбумина в суточной моче"]
["Определение концентрации кальция в суточной моче"]
["Определение концентрации неорганического фосфора в суточной моче"]
["Определение концентрации мочевой кислоты в суточной моче"]
["Определение диастазы мочи (определение активности альфа-амилазы в моче)"]
["Определение концентрации креатинина в моче"]
["Определение концентрации общего белка в спинномозговой жидкости (СМЖ) "]
["Определение концентрации глюкозы в спинномозговой жидкости (СМЖ) "]
["Определение концентрации хлоридов в спинномозговой жидкости (СМЖ) "]
["Исследование крови на сифилис (определение суммарных антител G, M, A к T.pallidum)в сыворотке крови"]
["Гепатит В (австралийский антиген / HBsAg) в сыворотке крови"]
["Гепатит С (суммарные антитела анти-ВГС / anti-HCV) в сыворотке крови"]
["Определение антител классов G (IgG) к вирусу простого герпеса (Herpes simplex virus 1, 2) в сыворотке крови"]
["Определение антител классов M (IgM) к вирусу простого герпеса (Herpes simplex virus 1, 2) в сыворотке крови"]
["Определение антител классов G (IgG) к цитомегаловирусу в сыворотке крови"]
["Определение антител классов M (IgM) к цитомегаловирусу в сыворотке крови"]
["Определение антител G (IgG) к возбудителю токсоплазмоза (Toxoplasma gondii) в сыворотке крови человека"]
["Определение антител M (IgM) к возбудителю токсоплазмоза (Toxoplasma gondii) в сыворотке крови человека"]
["Определение тиреотропного гормона (ТТГ) в сыворотке крови человека"]
["Определение свободного тироксина (Т4 свободный) в сыворотке крови человека"]
["Определение общего тироксина (Т4 общий) в сыворотке крови человека"]
["Определение свободного трийодтиронина (Т3 свободный) в сыворотке крови человека"]
["Определение общего тирийодтиронина (Т3 общий ) в сыворотке крови человека"]
["Определение аутоантител к тироидной пероксидазе (анти-ТПО) в сыворотке крови человека"]
["Определение кортизола  в сыворотке крови человека"]
["Определение фолликулостимулирующего гормона (ФСГ)  в сыворотке крови человека"]
["Определение лютеинизируещего гормона (ЛГ)  в сыворотке крови человека"]
["Определение прогестерона в сыворотке крови человека"]
["Определение пролактина в сыворотке крови человека"]
["Определение тестостерона в сыворотке крови человека"]
["Определение эстрадиола в сыворотке крови человека"]
["Определение антител к вирусу Эпштейна-Барра в сыворотке крови "]
["Исследование уровня  прокальцитонина в сыворотке крови "]
["Артериально-стимулированный венозный забор крови( забор крови из вены)"]
["Рентгенография дорсального отдела позвоночника"]
["Рентгенография дорсолюмбального отдела позвоночника"]
["Рентгенография поясничного отдела позвоночника"]
["Рентгенография одного отдела позвоночника "]
["Рентгенография крестца и копчика"]
["Рентгенография позвоночника, специальные исследования и проекции"]
["Рентгенография всего черепа"]
["Рентгенография черепа тангенциальная"]
["Рентгенография первого и второго шейного позвонка"]
["Рентгенография зубовидного отростка (второго шейного позвонка)"]
["Рентгенография шейного отдела позвоночника"]
["Рентгенография шейно-дорсального отдела позвоночника"]
["Рентгенография верхней конечности"]
["Рентгенография ключицы"]
["Рентгенография ребра(ер)"]
["Рентгенография грудины"]
["Рентгенография плеча"]
["Рентгенография лопатки"]
["Рентгенография головки плечевой кости"]
["Рентгенография плечевой кости"]
["Рентгенография локтевой кости и лучевой кости"]
["Рентгенография нижней конечности"]
["Рентгенография подвздошной кости"]
["Рентгенография седалищной кости"]
["Рентгенография лонного сочленения"]
["Рентгенография всего таза"]
["Рентгенография головки и шейки бедренной кости"]
["Рентгенография бедренной кости"]
["Рентгенография диафиза бедренной кости"]
["Рентгенография коленной чашечки"]
["Рентгенография большой берцовой и малой берцовой костей"]
["Рентгенография диафиза большой берцовой и малой берцовой костей"]
["Рентгенография лодыжки"]
["Рентгенография костей лицевого скелета"]
["Рентгенография черепа в прямой проекции"]
["Рентгенография межпозвоночных сочленений"]
["Рентгенография локтевого сустава"]
["Рентгенография лучезапястного сустава"]
["Рентгенография коленного сустава"]
["Рентгенография плечевого сустава"]
["Рентгенография бедренного сустава"]
["Рентгенография голеностопного сустава"]
["Рентгенография акромиально-ключичного сустава"]
["Рентгенография грудино-ключичного сочленения"]
["Прицельная рентгенография органов грудной клетки"]
["Рентгенография легких"]
["Рентгенография желудочно-кишечная"]
["Рентгенография средней части брюшной полости"]
["Рентгеноконтроль прохождения контраста по желудку, тонкой и ободочной кишке"]
["Рентгеноконтроль прохождения контраста по толстому кишечнику"]
["Рентгенография нижней части брюшной полости"]
["Обзорный снимок брюшной полости и органов малого таза"]
["Рентгенография запястья"]
["Рентгенография пясти"]
["Рентгенография кисти руки"]
["Рентгенография фаланг кисти"]
["Рентгенография пальцев руки"]
["Рентгенография большого пальца руки"]
["Рентгенография предплюсны"]
["Рентгенография пяточной кости"]
["Рентгенография плюсны и фаланг стопы"]
["Рентгенография стопы"]
["Рентгенография пальцев ноги"]
["Рентгенография большого пальца стопы"]
["Рентгенография дорсального отдела позвоночника 2 проекции "]
["Рентгенография дорсолюмбального отдела позвоночника 2 проекции "]
["Рентгенография поясничного отдела позвоночника 2 проекции "]
["Рентгенография одного отдела позвоночника 2 проекции "]
["Рентгенография крестца и копчика 2 проекции "]
["Рентгенография позвоночника, специальные исследования и проекции 2 проекции "]
["Рентгенография всего черепа 2 проекции "]
["Рентгенография черепа тангенциальная 2 проекции "]
["Рентгенография первого и второго шейного позвонка 2 проекции "]
["Рентгенография зубовидного отростка (второго шейного позвонка) 2 проекции "]
["Рентгенография шейного отдела позвоночника 2 проекции "]
["Рентгенография шейно-дорсального отдела позвоночника 2 проекции "]
["Рентгенография верхней конечности 2 проекции "]
["Рентгенография ключицы 2 проекции "]
["Рентгенография ребра(ер) 2 проекции "]
["Рентгенография грудины 2 проекции  "]
["Рентгенография плеча 2 проекции "]
["Рентгенография лопатки 2 проекции "]
["Рентгенография головки плечевой кости 2 проекции "]
["Рентгенография плечевой кости 2 проекции "]
["Рентгенография локтевой кости и лучевой кости 2 проекции "]
["Рентгенография нижней конечности 2 проекции "]
["Рентгенография подвздошной кости 2 проекции "]
["Рентгенография седалищной кости 2 проекции "]
["Рентгенография лонного сочленения 2 проекции "]
["Рентгенография всего таза 2 проекции "]
["Рентгенография головки и шейки бедренной кости 2 проекции "]
["Рентгенография бедренной кости 2 проекции "]
["Рентгенография диафиза бедренной кости 2 проекции "]
["Рентгенография коленной чашечки 2 проекции "]
["Рентгенография большой берцовой и малой берцовой костей 2 проекции "]
["Рентгенография диафиза большой берцовой и малой берцовой костей 2 проекции "]
["Рентгенография лодыжки 2 проекции "]
["Рентгенография костей лицевого скелета 2 проекции "]
["Рентгенография черепа в прямой проекции 2 проекции "]
["Рентгенография межпозвоночных сочленений 2 проекции "]
["Рентгенография локтевого сустава 2 проекции "]
["Рентгенография лучезапястного сустава 2 проекции "]
["Рентгенография коленного сустава 2 проекции "]
["Рентгенография плечевого сустава 2 проекции "]
["Рентгенография бедренного сустава 2 проекции "]
["Рентгенография голеностопного сустава 2 проекции "]
["Рентгенография акромиально-ключичного сустава 2 проекции "]
["Рентгенография грудино-ключичного сочленения 2 проекции "]
["Прицельная рентгенография органов грудной клетки 2 проекции "]
["Рентгенография легких 2 проекции  "]
["Рентгенография желудочно-кишечная 2 проекции "]
["Рентгенография средней части брюшной полости 2 проекции "]
["Рентгеноконтроль прохождения контраста по желудку, тонкой и ободочной кишке 2 проекции "]
["Рентгеноконтроль прохождения контраста по толстому кишечнику 2 проекции "]
["Рентгенография нижней части брюшной полости 2 проекции "]
["Обзорный снимок брюшной полости и органов малого таза 2 проекции "]
["Рентгенография запястья 2 проекции "]
["Рентгенография пясти 2 проекции "]
["Рентгенография кисти руки 2 проекции "]
["Рентгенография фаланг кисти 2 проекции "]
["Рентгенография пальцев руки 2 проекции "]
["Рентгенография большого пальца руки 2 проекции "]
["Рентгенография предплюсны 2 проекции "]
["Рентгенография пяточной кости 2 проекции "]
["Рентгенография плюсны и фаланг стопы 2 проекции "]
["Рентгенография стопы в двух проекциях 2 проекции "]
["Рентгенография пальцев ноги 2 проекции "]
["Рентгенография большого пальца стопы 2 проекции "]
["Рентгеноскопия пищевода с контрастным веществом"]
["Рентгеноскопия желудка и двенадцатиперстной кишки"]
["Ирригоскопия"]
[" Рентгенография стопы в двух проекциях "]
[" Рентгенография стопы в боковой  проекции(с нагрузкой)( два снимка)"]
[" Рентгенография стопы в прямой  проекции(с нагрузкой)( два снимка)"]
["Рентгенография височно-нижнечелюстного сустава (два снимка)"]
["Рентгенография нижней челюсти в боковой (косой) проекции "]
["Рентгенография глазного отверстия и канала зрительного нерва "]
["Рентгенография всего таза (дисплазия, с захватом в/3 бедер) "]
["Рентгенография позвоночника, специальные исследования и проекции (два снимка)                                                                                                                           "]
["Рентгенография придаточных пазух носа"]
["Рентгенография глазницы (два снимка)"]
[" Магнитно-резонансная томография одной анатомической зоны  без контраста: "]
["МРТ исследования, одной анатомической зоны:"]
["Контраст Гадовист 7,5 мл"]
["Контраст Гадовист 15 мл  "]
["КТ одной анатомической зоны без контраста (25минут)"]
["КТ одной анатомической зоны без контраста (40 минут): брюшной полости,  забрюшинного пространства."]
["КТ одной анатомической зоны с контрастам( 40минут)"]
["КТ одной анатомической зоны с контрастом (60 минут): брюшной полости,  забрюшинного пространства."]
["* Стоимость контрастного вещества оплачивается дополнительно (зависит от массы тела ребенка и определяестя врачем рентгенологом во время исследования)"]
["Контраст \"Ультравист\" 30 мл."]
["Контраст \"Ультравист\" 50 мл."]
["Тотальная внутривенная анестезия у детей( КТ,МРТ исследования) "]
["Описание и интерпретация компьютерных томограмм(КТ)"]
["Описание и интерпретация магнитно-резонансных томограмм (МРТ)"]
["Описание и интерпретация рентгенографических изображений "]
["Фиброгастродуоденоскопия"]
["Фиброколоноскопия"]
["Гипербарическая оксигенация"]
["Электростимуляция для мышц глаз (1 глаз)"]
["Дарсонваль"]
["Спелеотерапия"]
["Фонофорез"]
["Электросон"]
["Магнитотерапия"]
["УВЧ"]
["Лазерная терапия"]
["КУФ"]
["Аэронизация"]
["Лекарственный электрофорез"]
["Общее местное УФО"]
["ДМВ-ранет"]
["Парафин-озокерит"]
["Массаж (1 процед. ед.)"]
["Массаж (1,5 процед. ед.)"]
["Массаж (2 процед. ед.)"]
["Массаж (2,5 процед. ед.)"]
["Массаж (3 процед. ед.)"]
["Массаж (3,5 процед.ед.) "]
["ЛФК (дети школьного возраста при индивидуальном методе занятий) (3,0 пр.ед)"]
["ЛФК (дети школьного возраста при групповом методе занятий) ( 4,5 пр.ед)"]
["ЛФК (дети дошкольного возраста при индивидуальном методе занятий) ( 2,5 пр.ед)"]
["ЛФК (дети дошкольного возраста при групповом методе занятий) ( 3,0 пр.ед)"]
["ЛФК индивидуальная разработка ( 1,0 пр.ед)"]
["Ингаляция"]
["СТМ-терапия"]
["Стимуляция ректальная"]
["Кислородный коктейль"]
["ЭКГ иследование в 12 отведениях детям до 7 лет  (с заключением врача)"]
["ЭКГ иследование в 12 отведениях детям старше 7 лет (с заключением врача)"]
["Кардиоритмография до 7 лет (с заключением врача)"]
["Кардиоритмография старше 7 лет  (с заключением врача)"]
["Тест с физической нагрузкой 3 ЭКГ (бег на месте 2-3 мин) (с заключением врача)"]
["Компьютерная спирография детям до 7 лет (с заключением врача)"]
["Компьютерная спирография детям старше 7 лет  (с заключением врача)"]
["Компьютерная спирография с бронхолитиками (с заключением врача)"]
["Компьютерная энцефалография детям до 7 лет  (с заключением врача)"]
["Компьютерная энцефалография детям старше 7 лет  (с заключением врача)"]
["Холтеровское суточное мониторирование  ЭКГ И АД 20-24 часа детям до 7 лет ( расшифровка холтеровского мониторирования)"]
["Холтеровское суточное мониторирование ЭКГ И АД  20-24 часа детям старше 7 лет ( расшифровка холтеровского мониторирования)"]
["Холтеровское суточное мониторирование ЭКГ И АД  свыше 24 часа детям до 7 лет ( расшифровка холтеровского мониторирования)"]
["Холтеровское суточное мониторирование  ЭКГ И АД  свыше 24 часа детям  старше 7 лет ( расшифровка холтеровского мониторирования)"]
["Эхоэнцефалоскопия-ЭХО ЭС детям до 7 лет"]
["Эхоэнцефалоскопия-ЭХО ЭС детям  старше 7 лет"]
["Компьтерная электромиография ЭМГ игольчатая стандартная (2 мышцы)  детям до 7 лет"]
["Компьтерная электромиография ЭМГ игольчатая стандартная (2 мышцы)  детям старше 7 лет"]
["Компьтерная электромиография ЭМГ исследование скорости распрорстранения возбуждения по моторным волокнам (2 нерва)  детям до 7 лет"]
["Компьтерная электромиография ЭМГ исследование скорости распрорстранения возбуждения по моторным волокнам (2 нерва)  детям старше 7 лет"]
["Компьтерная электромиография ЭМГ исследование скорости распрорстранения возбуждения по сенсорным волокнам (2 нерва)  детям до 7 лет"]
["Компьтерная электромиография ЭМГ исследование скорости распрорстранения возбуждения по сенсорным волокнам (2 нерва)  детям старше 7 лет"]
["Прием (осмотр, консультация) врача аллерголога-иммунолога первичный"]
["Прием (осмотр, консультация) врача- пульмонолога первичный"]
["Прием (осмотр, консультация) врача-гастроэнтеролога первичный"]
["Прием (осмотр, консультация) врача-дерматовенеролога первичный"]
["Прием (осмотр, консультация) врача-нефролога первичный"]
["Консультация врача-детского-эндокринолога"]
["Прием (осмотр, консультация) врача-детского уролога-андролога первичный"]
["Прием (осмотр, консультация) врача-детского-хирурга первичный"]
["Консультация врача-челюстно-лицевого хирурга"]
["Прием (осмотр, консультация) врача-оториноларинголога первичный"]
["Прием (осмотр, консультация) врача-акушера-гинеколога  первичный"]
["Прием (осмотр, консультация) врача-травматолога-ортопеда  первичный"]
["Консультация врача-нейрохирурга"]
["Прием (осмотр, консультация) врача-невролога первичный"]
["Прием (осмотр, консультация) врача-педиатра первичный"]
["Консультация врача-детского-кардиолога"]
["Консультация врача-ревматолога"]
["Прием (осмотр, консультация) врача-офтальмолога"]
["Консультация врача-гематолога"]
["Консультация врача-сурдолога-оториноларинголога"]
["Перевязка"]
["Коагуляция"]
["Снятие швов"]
["Удаление новообразования"]
["Удаление моллюска"]
["Френулотомия"]
["Френулопластика"]
["Резекция почки"]
["Радикальная нефрэктомия"]
["Пластика лоханки и мочеточника"]
["Резекция мочеточника и лоханки с пластикой лоханки и мочеточника"]
["Удаление камней мочеточника"]
["Удаление камней мочевого пузыря"]
["Дивертикулэктомия"]
["Иссечение оболочек яичка"]
["Оперативное лечение пахово-бедренной грыжи"]
["Оперативное лечение пуоучной грыжи"]
["Киста семенного канатика"]
["Обрезание крайней плоти"]
["Грыжа белой линии живота"]
["Удаление доброкачественного образования кожи и подкожной жировой клечатки"]
["Низведение яичка при крипторхизме"]
["Лимфаденэктомия подмышечная"]
["Лапроскопическое клипирование левой яичковой вены"]
["Удаление полипа толстой кишки "]
["Удаление полипа толстой кишки эндоскопическое"]
["Цистоскопия с моделированием устья мочеточника (с применением \"Дэм-геля\") "]
["Цистоскопия с моделированием устья мочеточника (с применением \"уродекс-геля\") "]
["Резекция легкого"]
["Иссечение рубцов кожи челюстно-лицевой области"]
["Пластика уздечки языка"]
["Хейлоринопластика"]
["Ретинированные зубы, удаление зуба"]
["Наложение энтеро-энтероанастомоза "]
["Операция на слезных органах"]
["Операция удаление халязиона"]
["Операция удаление капилярной гемангиомы"]
["Операция на веках"]
["Операция удаление доброкачественного новообразования"]
["Операция склеропластика с использованием трансплатнантов"]
["Операция гонеотомия"]
["Операция удаление катаракты"]
["Травматолого-ортопедическая операция  1 категории 25 минут + (20 минут введение в наркоз, анестезия, выход из наркоза)"]
["Травматолого-ортопедическая операция  2 категории 60 минут + (30 минут введение в наркоз, анестезия, выход из наркоза)"]
["Травматолого-ортопедическая операция  3 категории 180 минут + (100 минут введение в наркоз, анестезия, выход из наркоза)"]
["Травматолого-ортопедическая операция 4 категории 200 минут + (115 минут введение в наркоз, анестезия, выход из наркоза)"]
["Ультразвуковое исследование(УЗИ) щитовидной железы"]
["Ультразвуковое исследование (УЗИ)  мочевого пузыря"]
["Ультразвуковое исследование (УЗИ)  объема остаточной мочи"]
["Ультразвуковое исследование (УЗИ)  вилочковой железы"]
["Ультразвуковое исследование  (УЗИ) печени"]
["Ультразвуковое исследование (УЗИ) желчного пузыря"]
["Ультразвуковое исследование (УЗИ) мягких тканей (одна анатомическая зона)"]
["Ультразвуковое исследование (УЗИ) почек"]
["Ультразвуковое исследование  (УЗИ) плевральной полости"]
["Ультразвуковое исследование (УЗИ) поджелудочной железы"]
["Ультразвуковое исследование (УЗИ) селезенки"]
["Ультразвуковое исследование (УЗИ) слюнных желез"]
["Ультразвуковое исследование (УЗИ) лимфатических узлов (одна анатомическая зона)"]
["Ультразвуковое исследование (УЗИ) забрюшинного пространства"]
["Ультразвуковое исследование (УЗИ) мошонки (яички, придатки)"]
["Ультразвуковое исследование (УЗИ) надпочечников"]
["Ультразвуковое исследование (УЗИ) определение жидкости в брюшной полости"]
["Ультразвуковое исследование (УЗИ) мочеточников"]
["Ультразвуковое исследование (УЗИ) матки и придатков трансабдоминальное"]
["Ультразвуковое исследование (УЗИ) головного мозга НСГ"]
["Ультразвуковое исследование  (УЗИ) суставов"]
["Ультразвуковое исследование (УЗИ)  суставов конечностей"]
["Ультразвуковое исследование (УЗИ) желчного пузыря с определением его сократимости"]
["Ультразвуковое исследование (УЗИ) органов брюшной полости (общее абдоминальное исследование)"]
["Ультразвуковое исследование (УЗИ) сердца с цветным картрированием"]
["Операция эндоскопическая шейверная аденотомия, двухсторонняя тонзиллэктомия"]
["Операция двухсторонняя подслизистая радиоволновая редукция нижних носовых раковин, эндоскопическая шейверная аденотомия "]
["Операция двухсторонняя тонзиллотомия, эндоскопическая шейверная аденотомия"]
["Операция эндоскопическая шейверная аденотомия"]
["Операция-эндоскопическая инфундибулотомия"]
["Операция эндоскопическая шейверная полипотомия носа (удаление антрохоанального полипа)"]
["Операция подслизистая резекция перегородки носа, двусторонняя подслизистая редукция нижних носовых раковин, эндоскопическая шейверная аденотомия"]
["Операция эндоскопическая на параназальных синусах"]
["Операция эндоскопическая шейверная аденотомия, миринготомия с шунтированием барабанной полости"]
["Стоимость 1 койко-дня пребывания                     в отделении"]
["Консервативное лечение 1 койка-дня дневного стационара с медикаментами"]
["Консервативное лечение 1 койка-дня дневного стационара без питания и медикаментав"]
["Консервативное лечение 1 койка-дня   по паллиативу  с медикаментами"]
["Консервативное лечение 1 койка-дня   по паллиативу  без питания и медикаметов"]
["Питание лица осуществляющего уход за пациентами на грудном вскармливании (кормящие матери)"]
["Питание лица осуществляющего уход за пациентами"]
["Питание пациентов находящихся на круглосуточном стационаре"]
["Питание пациентов находящихся на дневном стационаре"]
["Консервативное лечение 1 койка-дня   пятиместной  палате стационара  с медикаментами без питания"]
["Консервативное лечение 1 койка-дня в  четырехместной палате стационара с медикаментами без питания"]
["Консервативное лечение 1 койка-дня в  трехместной палате стационара с медикаментами без питания"]
["Консервативное лечение 1 койка-дня в  двухместной палате стационара с медикаментами без питания"]
["Консервативное лечение 1 койка-дня в  одноместной палате стационара с медикаментами без питания"]
["Консервативное лечение 1 койка-дня в  пятиместной палате стационара без питания и медикаментов"]
["Консервативное лечение 1 койка-дня в  четырехместной палате стационара без питания и медикаментов"]
["Консервативное лечение 1 койка-дня в  трехместной палате стационара без питания и медикаментов"]
["Консервативное лечение 1 койка-дня в  двухместной палате стационара без питания и медикаментов"]
["Консервативное лечение 1 койка-дня в  одноместной палате стационара без питания и медикаментов"]
["Сиделка ( медицинская сестра) 60 мин"]
["Сиделка ( младшая медицинская сестра) 60 мин"]
["Бужирование пищевода (эндоскопически)"]
["Бронхоскопии медицинским организациям"]
["Палата  повышенной комфортности  с дополнительным медицинским обслуживанием "]
["Молекулярно-биологического  исследования с использованием ПЦР"]
["Анестезия 25 мин"]
["Анестезия 30 мин"]
["Анестезия 45 мин"]
["Анестезия до 80 мин"]
["Анестезия до 120 мин"]
["Анестезия до 150 мин"]
["Анестезия до 210 мин"]
["Анестезия до 270 мин"]
["Исследование экссудатов и транссудатов(перитариальная жидкость)"]
["Коагулограмма: Активированное частичное тромбопластиновое время (АЧТВ), Фибриноген \"А\"(ФА), Протромбин по Квику+МНО"]
["Протромбин по Квику+ МНО"]
["Активированное частичное тромбопластиновое время (АЧТВ)"]
["Фибриноген \"А\"(ФА)"]
["Агрегация тромбоцитов с  адреналином"]
["Агрегация тромбоцитов с коллагеном"]
["Агрегация тромбоцитов с ристомицином"]
[" Агрегация тромбоцитов АДФ"]
["Д-димер"]
["Определение имунноглобулинов класса G   к ранним   антигенам      вируса  Эпштейн-Барра в сыворотке крови  "]
["Определение имунноглобулинов класса G   к  ядерному  антигену      вируса  Эпштейн-Барра в сыворотке крови  "]
["Определение имунноглобулинов класса М к капсидному   антигену      вируса  Эпштейн-Барра в сыворотке крови  "]
["Операция рецессия глазной мышцы"]
["Операция резекция глазной мышцы"]
["Операция миотомия, тенотомия глазной мышцы "]
["Операция трансплантация глазной мышцы"]
["Оториноларингологическая Операция  1 категории сложности (20 мин.)"]
["Оториноларингологическая Операция  2 категории сложности (60 мин.)"]
["Оториноларингологическая Операция 3 категории сложности (90 мин.)"]
["Оториноларингологическая Операция 4 категории сложности (120 мин.)"]

{"sheet":"Tmp_####","index":6,"n_rows":0,"n_cols":0,"rows_kept":0,"cut":false,"hidden":true,"merged":[]}